Body,Body Name,Date,Transaction Number,Invoice Number,Amount,Supplier Name,Supplier ID ,VAT Registration Number ,Expense Area,Expense Type,Expense Code,Purchase Order
http://statistics.data.gov.uk/id/local-authority/29UP,Tonbridge & Malling Borough Council,10/3/2022,0041034779/1,41034779, 997.48,King & Shaxson Investments,01411100,,Professional Fees,Treasury Management,D43QT000044001,
http://statistics.data.gov.uk/id/local-authority/29UP,Tonbridge & Malling Borough Council,10/3/2022,0041034780/1,41034780, 15.00,BNP Paribas,01360500,,Bank Charges,Banking Arrangements,D43QK000044222,
http://statistics.data.gov.uk/id/local-authority/29UP,Tonbridge & Malling Borough Council,10/4/2022,0041034785/1,41034785, 4132.67,National Westminster Bank Plc,00069400,,Bank Charges,Banking Arrangements,D43QK000044222,
http://statistics.data.gov.uk/id/local-authority/29UP,Tonbridge & Malling Borough Council,10/4/2022,0041034786/1,41034786, 250.00,National Westminster Bank Plc,00069400,,Bank Charges,Banking Arrangements,D43QK000044222,
http://statistics.data.gov.uk/id/local-authority/29UP,Tonbridge & Malling Borough Council,10/5/2022,0011044936/1,11044936, 7500.00,Tonbridge Baptist Church,00401200,,Partnership Initiatives,Community Development,D30MB000048144,110069801
http://statistics.data.gov.uk/id/local-authority/29UP,Tonbridge & Malling Borough Council,10/5/2022,0011044937/1,11044937, 990.00,Comfort Controls  (Service) Limited,01226700,,BRREP BMS System Mntce/Upgrade,Larkfield Leisure Centre,M15HDP20001912,110069337
http://statistics.data.gov.uk/id/local-authority/29UP,Tonbridge & Malling Borough Council,10/5/2022,0011044938/1,11044938, 60.00,Willow Pumps Ltd,00114100,,BRREP Servicing - Pumping Stn,Tonbridge Swimming Pool,M15HBP20001931,110069721
http://statistics.data.gov.uk/id/local-authority/29UP,Tonbridge & Malling Borough Council,10/5/2022,0011044938/2,11044938, 110.00,Willow Pumps Ltd,00114100,,BRREP Servicing - Pumping Stn,Ton Sportsgrnd Bldgs / Toilets,M15HCP20001931,110069721
http://statistics.data.gov.uk/id/local-authority/29UP,Tonbridge & Malling Borough Council,10/5/2022,0011044938/3,11044938, 110.00,Willow Pumps Ltd,00114100,,BRREP Servicing - Pumping Stn,Vale Rise Depot,M15LCP20001931,110069721
http://statistics.data.gov.uk/id/local-authority/29UP,Tonbridge & Malling Borough Council,10/5/2022,0011044939/1,11044939, 990.00,Comfort Controls  (Service) Limited,01226700,,BRREP BMS System Mntce/Upgrade,Tonbridge Swimming Pool,M15HBP20001912,110069340
http://statistics.data.gov.uk/id/local-authority/29UP,Tonbridge & Malling Borough Council,10/5/2022,0011044940/1,11044940, 178.00,K T Fire Protection Ltd,00057000,,BRREP Servicing - FireAlarmSys,Angel Centre,M15HAP20001937,110069669
http://statistics.data.gov.uk/id/local-authority/29UP,Tonbridge & Malling Borough Council,10/5/2022,0011044941/1,11044941, 64.00,K T Fire Protection Ltd,00057000,,BRREP Servicing - FireAlarmSys,Tonbridge Farm Pavillion,M15HGP20001937,110069668
http://statistics.data.gov.uk/id/local-authority/29UP,Tonbridge & Malling Borough Council,10/5/2022,0011044942/1,11044942, 68.00,K T Fire Protection Ltd,00057000,,BRREP Servicing - FireAlarmSys,Tonbridge Castle Gatehouse,M15HKP20001937,110069661
http://statistics.data.gov.uk/id/local-authority/29UP,Tonbridge & Malling Borough Council,10/5/2022,0011044943/1,11044943, 68.00,K T Fire Protection Ltd,00057000,,BRREP Servicing - FireAlarmSys,Tonbridge Castle / CAB,M15KFP20001937,110069666
http://statistics.data.gov.uk/id/local-authority/29UP,Tonbridge & Malling Borough Council,10/5/2022,0011044944/1,11044944, 79.50,KCS,00054200,,Stationery,Admin & Prop Sals&Overheads,D01AA000043003,110069794
http://statistics.data.gov.uk/id/local-authority/29UP,Tonbridge & Malling Borough Council,10/5/2022,0011044944/2,11044944, 119.00,KCS,00054200,,Stationery,Admin & Prop Sals&Overheads,D01AA000043003,110069794
http://statistics.data.gov.uk/id/local-authority/29UP,Tonbridge & Malling Borough Council,10/5/2022,0011044944/3,11044944, 199.00,KCS,00054200,,Stationery,Admin & Prop Sals&Overheads,D01AA000043003,110069794
http://statistics.data.gov.uk/id/local-authority/29UP,Tonbridge & Malling Borough Council,10/5/2022,0011044944/4,11044944, 238.50,KCS,00054200,,Stationery,Admin & Prop Sals&Overheads,D01AA000043003,110069794
http://statistics.data.gov.uk/id/local-authority/29UP,Tonbridge & Malling Borough Council,10/5/2022,0011044945/1,11044945, 64.95,KCS,00054200,,Cleaning & Domestic Supplies,Cleaning & Security,D21FD000026001,110069706
http://statistics.data.gov.uk/id/local-authority/29UP,Tonbridge & Malling Borough Council,10/5/2022,0011044945/2,11044945, 299.90,KCS,00054200,,Cleaning & Domestic Supplies,Cleaning & Security,D21FD000026001,110069706
http://statistics.data.gov.uk/id/local-authority/29UP,Tonbridge & Malling Borough Council,10/5/2022,0011044946/1,11044946, 146.25,GreenFish Consulting part of JCML Consul,01627700,,BRREP General Maintenance,Land Review,M15MAP49901900,110069726
http://statistics.data.gov.uk/id/local-authority/29UP,Tonbridge & Malling Borough Council,10/5/2022,0011044947/1,11044947, 345.00,Southern Lightning Engineers Ltd,00094000,,BRREP Servicing-Lightning Prot,Larkfield Leisure Centre,M15HDP20001942,110069795
http://statistics.data.gov.uk/id/local-authority/29UP,Tonbridge & Malling Borough Council,10/5/2022,0011044948/1,11044948, 250.00,GI Carpets Ltd,00953500,,BRREP Servicing - lifts,Leis Man Poult Wood Golf Centr,M15HEP20001930,110069702
http://statistics.data.gov.uk/id/local-authority/29UP,Tonbridge & Malling Borough Council,10/5/2022,0011044949/1,11044949, 554.00,Security & Electronic Solutions Ltd,01379500,,BRREP Servicing - CCTV,Leis Man Poult Wood Golf Centr,M15HEP20001952,110069707
http://statistics.data.gov.uk/id/local-authority/29UP,Tonbridge & Malling Borough Council,10/5/2022,0011044953/1,11044953, 313.67,KCC - L.A.S.E.R Commercial Services ,00184300,,Electricity,Public Conveniences,H22SCH00221002,
http://statistics.data.gov.uk/id/local-authority/29UP,Tonbridge & Malling Borough Council,10/5/2022,0011044954/1,11044954, 1750.17,Royal Mail,00086200,,Purchases,Mailsort Stock Account,K37BR000001002,
http://statistics.data.gov.uk/id/local-authority/29UP,Tonbridge & Malling Borough Council,10/5/2022,0011044954/2,11044954, 7.33,Royal Mail,00086200,,Purchases,Mailsort Stock Account,K37BR000001002,
http://statistics.data.gov.uk/id/local-authority/29UP,Tonbridge & Malling Borough Council,10/5/2022,0011044954/3,11044954, 1.75,Royal Mail,00086200,,Purchases,Mailsort Stock Account,K37BR000001002,
http://statistics.data.gov.uk/id/local-authority/29UP,Tonbridge & Malling Borough Council,10/5/2022,0011044955/1,11044955, 53.99,Prosec General Security Ltd,00810600,,Office Security,Ton Castle Council Chamber,D21FC000044047,
http://statistics.data.gov.uk/id/local-authority/29UP,Tonbridge & Malling Borough Council,10/5/2022,0011044955/2,11044955, 978.75,Prosec General Security Ltd,00810600,,Office Security,Cleaning & Security,D21FD000044047,
http://statistics.data.gov.uk/id/local-authority/29UP,Tonbridge & Malling Borough Council,10/5/2022,0011044955/3,11044955, 2980.13,Prosec General Security Ltd,00810600,,Office Security,Tonbridge Gateway,D23TG000044047,
http://statistics.data.gov.uk/id/local-authority/29UP,Tonbridge & Malling Borough Council,10/5/2022,0011044956/1,11044956, 99.70,Royal Mail,00086200,,Purchases,Mailsort Stock Account,K37BR000001002,
http://statistics.data.gov.uk/id/local-authority/29UP,Tonbridge & Malling Borough Council,10/5/2022,0011044957/1,11044957, 96.00,RBL Poppy Appeal,00543100,,Other Expenses,Mayoral & Other Member Support,D29LX000048010,
http://statistics.data.gov.uk/id/local-authority/29UP,Tonbridge & Malling Borough Council,10/5/2022,0011044958/1,11044958, 206.99,Scottish Water Business Stream Ltd,01641100,,Sewerage Charges,Buildings,D21FEDD5024003,
http://statistics.data.gov.uk/id/local-authority/29UP,Tonbridge & Malling Borough Council,10/5/2022,0011044959/1,11044959, 120.00,G C Industrial Heating Services,00578100,,BRREP Servicing - Heating Syst,Leis Man Poult Wood Golf Centr,M15HEP20001934,
http://statistics.data.gov.uk/id/local-authority/29UP,Tonbridge & Malling Borough Council,10/5/2022,0011044960/1,11044960, 79.00,BML Building Services Ltd,01505000,,BRREP Response - General,Tonbridge Castle Gatehouse,M15HKP50001997,
http://statistics.data.gov.uk/id/local-authority/29UP,Tonbridge & Malling Borough Council,10/5/2022,0011044961/1,11044961, 1809.36,Motogirl Ltd,01865300,,Economic Development & Regen,Eco Dev & Reg Gen Bus Support,D52TD000047027,
http://statistics.data.gov.uk/id/local-authority/29UP,Tonbridge & Malling Borough Council,10/5/2022,0011044962/1,11044962, 945.00,Financial Data Management  Plc,00035400,,External Printing,Conduct of Elections,D31MG000043001,
http://statistics.data.gov.uk/id/local-authority/29UP,Tonbridge & Malling Borough Council,10/5/2022,0012008487/1,12008487, 4950.00,3C Technology Limited,00997700,,Initial Furniture & Equipment,Capital Renewals IT,P06FBFB1009906,410032263
http://statistics.data.gov.uk/id/local-authority/29UP,Tonbridge & Malling Borough Council,10/5/2022,0012008487/2,12008487, 280.00,3C Technology Limited,00997700,,Initial Furniture & Equipment,Capital Renewals IT,P06FBFB1009906,410032263
http://statistics.data.gov.uk/id/local-authority/29UP,Tonbridge & Malling Borough Council,10/5/2022,0012008488/1,12008488, 674.85,CCS Media Ltd,00018000,,Purchases,Information Technology,D27KD000040101,410032266
http://statistics.data.gov.uk/id/local-authority/29UP,Tonbridge & Malling Borough Council,10/5/2022,0012008489/1,12008489, 995.00,Socitm Ltd,00906400,,Subscriptions,Information Technology,D27KD000047002,410032268
http://statistics.data.gov.uk/id/local-authority/29UP,Tonbridge & Malling Borough Council,10/5/2022,0012008490/1,12008490, 15.72,Esendex Limited,01008900,,Leased Lines & Modems,Information Technology,D27KD000045011,
http://statistics.data.gov.uk/id/local-authority/29UP,Tonbridge & Malling Borough Council,10/5/2022,0012008491/1,12008491, 559.50,KCS,00054200,,Leasing Charges,Multi Function Devices,D22GB000044038,
http://statistics.data.gov.uk/id/local-authority/29UP,Tonbridge & Malling Borough Council,10/5/2022,0012008492/1,12008492, 127.83,KCS,00054200,,Leasing Charges,Multi Function Devices,D22GB000044038,
http://statistics.data.gov.uk/id/local-authority/29UP,Tonbridge & Malling Borough Council,10/5/2022,0012008493/1,12008493, 105.51,KCS,00054200,,Leasing Charges,Multi Function Devices,D22GB000044038,
http://statistics.data.gov.uk/id/local-authority/29UP,Tonbridge & Malling Borough Council,10/5/2022,0012008494/1,12008494, 130.63,KCS,00054200,,Leasing Charges,Multi Function Devices,D22GB000044038,
http://statistics.data.gov.uk/id/local-authority/29UP,Tonbridge & Malling Borough Council,10/5/2022,0012008495/1,12008495, 130.63,KCS,00054200,,Leasing Charges,Multi Function Devices,D22GB000044038,
http://statistics.data.gov.uk/id/local-authority/29UP,Tonbridge & Malling Borough Council,10/5/2022,0012008496/1,12008496, 122.61,KCS,00054200,,Leasing Charges,Multi Function Devices,D22GB000044038,
http://statistics.data.gov.uk/id/local-authority/29UP,Tonbridge & Malling Borough Council,10/5/2022,0012008497/1,12008497, 122.61,KCS,00054200,,Leasing Charges,Multi Function Devices,D22GB000044038,
http://statistics.data.gov.uk/id/local-authority/29UP,Tonbridge & Malling Borough Council,10/5/2022,0012008498/1,12008498, 122.61,KCS,00054200,,Leasing Charges,Multi Function Devices,D22GB000044038,
http://statistics.data.gov.uk/id/local-authority/29UP,Tonbridge & Malling Borough Council,10/5/2022,0012008499/1,12008499, 122.61,KCS,00054200,,Leasing Charges,Multi Function Devices,D22GB000044038,
http://statistics.data.gov.uk/id/local-authority/29UP,Tonbridge & Malling Borough Council,10/5/2022,0012008500/1,12008500, 130.63,KCS,00054200,,Leasing Charges,Multi Function Devices,D22GB000044038,
http://statistics.data.gov.uk/id/local-authority/29UP,Tonbridge & Malling Borough Council,10/5/2022,0012008501/1,12008501, 82.58,KCS,00054200,,Leasing Charges,Multi Function Devices,D22GB000044038,
http://statistics.data.gov.uk/id/local-authority/29UP,Tonbridge & Malling Borough Council,10/5/2022,0012008502/3,12008502, 91.95,KCS,00054200,,Leasing Charges,Multi Function Devices,D22GB000044038,
http://statistics.data.gov.uk/id/local-authority/29UP,Tonbridge & Malling Borough Council,10/5/2022,0012008503/1,12008503, 122.61,KCS,00054200,,Leasing Charges,Multi Function Devices,D22GB000044038,
http://statistics.data.gov.uk/id/local-authority/29UP,Tonbridge & Malling Borough Council,10/5/2022,0012008504/1,12008504, 130.63,KCS,00054200,,Leasing Charges,Multi Function Devices,D22GB000044038,
http://statistics.data.gov.uk/id/local-authority/29UP,Tonbridge & Malling Borough Council,10/5/2022,0012008504/2,12008504, 29.43,KCS,00054200,,Leasing Charges,Multi Function Devices,D22GB000044038,
http://statistics.data.gov.uk/id/local-authority/29UP,Tonbridge & Malling Borough Council,10/5/2022,0012008505/1,12008505, 29.95,CCS Media Ltd,00018000,,Purchases,Information Technology,D27KD000040101,410032266
http://statistics.data.gov.uk/id/local-authority/29UP,Tonbridge & Malling Borough Council,10/5/2022,0012008505/2,12008505, 5.00,CCS Media Ltd,00018000,,Delivery Expenses,Information Technology,D27KD000044069,410032266
http://statistics.data.gov.uk/id/local-authority/29UP,Tonbridge & Malling Borough Council,10/5/2022,0012008506/1,12008506, 1789.83,NTT Cloud Communications UK Ltd,01794600,,Software Hire & Support,Information Technology,D27KD000044059,
http://statistics.data.gov.uk/id/local-authority/29UP,Tonbridge & Malling Borough Council,10/5/2022,0021038184/1,21038184, 2.95,KCS,00054200,,Purchases,Cemetery,B26MP000040101,210056982
http://statistics.data.gov.uk/id/local-authority/29UP,Tonbridge & Malling Borough Council,10/5/2022,0021038184/2,21038184, 9.95,KCS,00054200,,Purchases,Cemetery,B26MP000040101,210056982
http://statistics.data.gov.uk/id/local-authority/29UP,Tonbridge & Malling Borough Council,10/5/2022,0021038185/1,21038185, 15801.92,Tonbridge & Malling Leisure Trust,01469100,,Employers Superannuation Costs,T&M Leisure Trust,B10DA000050107,
http://statistics.data.gov.uk/id/local-authority/29UP,Tonbridge & Malling Borough Council,10/5/2022,0021038187/3,21038187, 1.72,Castle Water,01696500,,Water Charges (Metered),Cemetery,B26MP000024001,
http://statistics.data.gov.uk/id/local-authority/29UP,Tonbridge & Malling Borough Council,10/5/2022,0021038188/1,21038188, 1100.00,Forestry First,01834900,,BRREP General Maintenance,Land Review,M15MAP49901900,210056876
http://statistics.data.gov.uk/id/local-authority/29UP,Tonbridge & Malling Borough Council,10/5/2022,0021038188/2,21038188, 267.00,Forestry First,01834900,,BRREP General Maintenance,Land Review,M15MAP49901900,210056876
http://statistics.data.gov.uk/id/local-authority/29UP,Tonbridge & Malling Borough Council,10/5/2022,0022027066/1,22027066, 11.00,REDACTED PERSONAL DATA,00713700,,Funeral Expenses,Public Health Act 1984,H26SG000054002,
http://statistics.data.gov.uk/id/local-authority/29UP,Tonbridge & Malling Borough Council,10/5/2022,0022027067/1,22027067, 16117.20,Straight Manufacturing Ltd,01029400,,Initial Furniture & Equipment,Green Waste Bin Growth/Replace,P02BC000009906,220003261
http://statistics.data.gov.uk/id/local-authority/29UP,Tonbridge & Malling Borough Council,10/5/2022,0022027068/3,22027068, 218.00,EDF Energy Customers plc,01035000,,Electricity,Homelessness,C01AATNHS21002,
http://statistics.data.gov.uk/id/local-authority/29UP,Tonbridge & Malling Borough Council,10/5/2022,0022027069/3,22027069, 490.00,Countrystyle Group,00835900,781981681,Collection of Card,Dry Recycling,H34SR000054008,
http://statistics.data.gov.uk/id/local-authority/29UP,Tonbridge & Malling Borough Council,10/5/2022,0022027070/3,22027070, 4645.60,Countrystyle Group,00835900,781981681,Plastic Recycling,Dry Recycling,H34SR000054019,
http://statistics.data.gov.uk/id/local-authority/29UP,Tonbridge & Malling Borough Council,10/5/2022,0022027071/1,22027071, 5054.00,Ascendit Lifts Ltd,00446600,,Other Expenses,Disabled Facilities Grant Mand,P03AC000009908,
http://statistics.data.gov.uk/id/local-authority/29UP,Tonbridge & Malling Borough Council,10/5/2022,0022027072/1,22027072, 3828.07,Adaptec Mobilty Ltd,01785800,339578354,Other Expenses,Disabled Facilities Grant Mand,P03AC000009908,
http://statistics.data.gov.uk/id/local-authority/29UP,Tonbridge & Malling Borough Council,10/5/2022,0022027073/1,22027073, 1205.82,Town & Country Housing Group,01385400,,Other Expenses,Disabled Facilities Grant Mand,P03AC000009908,
http://statistics.data.gov.uk/id/local-authority/29UP,Tonbridge & Malling Borough Council,10/5/2022,0022027074/3,22027074, 4322.11,Ward Security LTD,01490000,,Dog Warden,Street Scene,H23SD000044100,
http://statistics.data.gov.uk/id/local-authority/29UP,Tonbridge & Malling Borough Council,10/5/2022,0022027075/1,22027075, 18.18,Ark Trading,01607200,,Purchases,Street Scene,H23SD000040101,220003269
http://statistics.data.gov.uk/id/local-authority/29UP,Tonbridge & Malling Borough Council,10/5/2022,0022027075/2,22027075, 64.92,Ark Trading,01607200,,Purchases,Street Scene,H23SD000040101,220003269
http://statistics.data.gov.uk/id/local-authority/29UP,Tonbridge & Malling Borough Council,10/5/2022,0022027076/3,22027076, 400.00,Green Recycling LTD,01563000,,Paper Recycling,Dry Recycling,H34SR000054024,
http://statistics.data.gov.uk/id/local-authority/29UP,Tonbridge & Malling Borough Council,10/5/2022,0022027077/1,22027077, 633.20,SOUTHPAW,01676800,,Other Expenses,Disabled Facilities Grant Mand,P03AC000009908,
http://statistics.data.gov.uk/id/local-authority/29UP,Tonbridge & Malling Borough Council,10/5/2022,0022027078/1,22027078, 60.00,Town & Country Housing Group,01385400,,Other Expenses,Disabled Facilities Grant Mand,P03AC000009908,
http://statistics.data.gov.uk/id/local-authority/29UP,Tonbridge & Malling Borough Council,10/5/2022,0031018916/1,31018916, 32.00,Kent County Council,00167000,,Tonbridge Christmas Lighting,Eco Dev & Reg Ton Chris Light,D52TF000047015,210056939
http://statistics.data.gov.uk/id/local-authority/29UP,Tonbridge & Malling Borough Council,10/5/2022,0031018917/1,31018917, 695.00,Lemon Drainage Services LTD,01761600,,Sewerage Charges,Haysden Country Park,B22LC000024003,210056979
http://statistics.data.gov.uk/id/local-authority/29UP,Tonbridge & Malling Borough Council,10/5/2022,0031018918/3,31018918, 170.85,British Telecommunications Plc,00012800,,Maintenance - General,Security Services Management,E09GA000040135,
http://statistics.data.gov.uk/id/local-authority/29UP,Tonbridge & Malling Borough Council,10/5/2022,0031018919/3,31018919, 151.83,British Telecommunications Plc,00012800,,Maintenance - General,Security Services Management,E09GA000040135,
http://statistics.data.gov.uk/id/local-authority/29UP,Tonbridge & Malling Borough Council,10/5/2022,0031018920/1,31018920, 3475.00,DSSL Group Ltd,01839500,,CCTV Monitoring Station,Security Services Management,E09GA000051020,310042803
http://statistics.data.gov.uk/id/local-authority/29UP,Tonbridge & Malling Borough Council,10/5/2022,0031018921/1,31018921, 450.00,Wellden Land Surveys,01410600,,Professional Fees,Boro Drainage & Land Drainage,E20MA000044001,310042817
http://statistics.data.gov.uk/id/local-authority/29UP,Tonbridge & Malling Borough Council,10/5/2022,0031018929/1,31018929, 1295.00,Marston,01485000,,Adjudication & Enforcement Ser,Parking Off-Street,E10HA000044230,
http://statistics.data.gov.uk/id/local-authority/29UP,Tonbridge & Malling Borough Council,10/5/2022,0032009804/1,32009804, 8729.00,Arcadis Consulting (UK) Limited,01760300,,Professional Fees,Planning Policy,A01AFBORO44001,320003208
http://statistics.data.gov.uk/id/local-authority/29UP,Tonbridge & Malling Borough Council,10/5/2022,0032009805/1,32009805, 7040.00,Arcadis Consulting (UK) Limited,01760300,,Professional Fees,Planning Policy,A01AFBORO44001,220003240
http://statistics.data.gov.uk/id/local-authority/29UP,Tonbridge & Malling Borough Council,10/5/2022,0032009806/3,32009806, 2310.00,G2 Recruitment Solutions,01786000,,Temporary Staff,Planning Sals&Overheads,D01AJDJ0111300,
http://statistics.data.gov.uk/id/local-authority/29UP,Tonbridge & Malling Borough Council,10/5/2022,0032009807/3,32009807, 2710.07,G2 Recruitment Solutions,01786000,,Temporary Staff,Planning Sals&Overheads,D01AJDJ0111300,
http://statistics.data.gov.uk/id/local-authority/29UP,Tonbridge & Malling Borough Council,10/5/2022,0032009808/3,32009808, 2414.25,G2 Recruitment Solutions,01786000,,Temporary Staff,Planning Sals&Overheads,D01AJDJ0111300,
http://statistics.data.gov.uk/id/local-authority/29UP,Tonbridge & Malling Borough Council,10/5/2022,0032009809/3,32009809, 1023.00,G2 Recruitment Solutions,01786000,,Temporary Staff,Planning Sals&Overheads,D01AJDJ0111300,
http://statistics.data.gov.uk/id/local-authority/29UP,Tonbridge & Malling Borough Council,10/5/2022,0032009810/3,32009810, 1946.00,Vivid Resourcing,01773700,,Temporary Staff,Planning Sals&Overheads,D01AJDJ0111300,
http://statistics.data.gov.uk/id/local-authority/29UP,Tonbridge & Malling Borough Council,10/5/2022,0032009811/3,32009811, 6300.00,TSC Designs,01602800,359305975,Professional Fees,Building Control,A01AD000044001,
http://statistics.data.gov.uk/id/local-authority/29UP,Tonbridge & Malling Borough Council,10/5/2022,0032009812/1,32009812, 2500.00,Bruton Knowles,01843000,,Professional Fees,Development Management,A01AB000044001,
http://statistics.data.gov.uk/id/local-authority/29UP,Tonbridge & Malling Borough Council,10/5/2022,0032009814/1,32009814, 1333.00,Carrington West Limited,01844500,,Temporary Staff,Planning Sals&Overheads,D01AJDJ0111300,
http://statistics.data.gov.uk/id/local-authority/29UP,Tonbridge & Malling Borough Council,10/5/2022,0032009815/1,32009815, 2.95,KCS,00054200,,Stationery,Planning Sals&Overheads,D01AJDJ0143003,320003451
http://statistics.data.gov.uk/id/local-authority/29UP,Tonbridge & Malling Borough Council,10/5/2022,0032009815/2,32009815, 11.99,KCS,00054200,,Stationery,Planning Sals&Overheads,D01AJDJ0143003,320003451
http://statistics.data.gov.uk/id/local-authority/29UP,Tonbridge & Malling Borough Council,10/5/2022,0032009816/1,32009816, 214.20,KM Media Group Ltd,00053900,,Advertising General,Development Management,A01ABZ99944216,320003447
http://statistics.data.gov.uk/id/local-authority/29UP,Tonbridge & Malling Borough Council,10/5/2022,0032009818/1,32009818, 3810.00,G4S Cash Solutions ( UK ) Ltd,01398400,,Cash Collection,Parking Off-Street,E10HAE00144007,
http://statistics.data.gov.uk/id/local-authority/29UP,Tonbridge & Malling Borough Council,10/5/2022,0041034753/1,41034753, 1575.00,Kent County Council,00322500,,Contract Services,Finance Sals&Overheads,D01AFDF0044005,410032240
http://statistics.data.gov.uk/id/local-authority/29UP,Tonbridge & Malling Borough Council,10/5/2022,0041034775/10,41034775, 22.00,National Westminster Bank Plc,00894500,,Legal Fees,Legal Sals&Overheads,D01ARDR0044002,
http://statistics.data.gov.uk/id/local-authority/29UP,Tonbridge & Malling Borough Council,10/5/2022,0041034775/17,41034775, 15.51,National Westminster Bank Plc,00894500,,Software Hire & Support,Information Technology,D27KD000044059,
http://statistics.data.gov.uk/id/local-authority/29UP,Tonbridge & Malling Borough Council,10/5/2022,0041034775/18,41034775, 16.05,National Westminster Bank Plc,00894500,,Delivery Expenses,Information Technology,D27KD000044069,
http://statistics.data.gov.uk/id/local-authority/29UP,Tonbridge & Malling Borough Council,10/5/2022,0041034775/19,41034775, 219.75,National Westminster Bank Plc,00894500,,Information & Publicity,Information & Publicity,D32MJ000044076,
http://statistics.data.gov.uk/id/local-authority/29UP,Tonbridge & Malling Borough Council,10/5/2022,0041034775/20,41034775, 46.41,National Westminster Bank Plc,00894500,,Information & Publicity,Information & Publicity,D32MJ000044076,
http://statistics.data.gov.uk/id/local-authority/29UP,Tonbridge & Malling Borough Council,10/5/2022,0041034775/21,41034775, 583.50,National Westminster Bank Plc,00894500,,Legal Fees,Local Revenue & NNDR Collect,D41QA000044002,
http://statistics.data.gov.uk/id/local-authority/29UP,Tonbridge & Malling Borough Council,10/5/2022,0041034775/22,41034775, 18.45,National Westminster Bank Plc,00894500,,Health General,Food & Safety - General,H35SW000044049,
http://statistics.data.gov.uk/id/local-authority/29UP,Tonbridge & Malling Borough Council,10/5/2022,0041034775/23,41034775, 50.28,National Westminster Bank Plc,00894500,,Sales,TIC Stock Account,K18AX000002002,
http://statistics.data.gov.uk/id/local-authority/29UP,Tonbridge & Malling Borough Council,10/5/2022,0041034775/24,41034775, 17.03,National Westminster Bank Plc,00894500,,Sales,TIC Stock Account,K18AX000002002,
http://statistics.data.gov.uk/id/local-authority/29UP,Tonbridge & Malling Borough Council,10/5/2022,0041034775/25,41034775, 44.08,National Westminster Bank Plc,00894500,,Sales,TIC Stock Account,K18AX000002002,
http://statistics.data.gov.uk/id/local-authority/29UP,Tonbridge & Malling Borough Council,10/5/2022,0041034775/26,41034775, 94.73,National Westminster Bank Plc,00894500,,Sales,TIC Stock Account,K18AX000002002,
http://statistics.data.gov.uk/id/local-authority/29UP,Tonbridge & Malling Borough Council,10/5/2022,0041034775/5,41034775, 35.85,National Westminster Bank Plc,00894500,,Purchases,Tonbridge Castle Gatehouse,B40TG000040101,
http://statistics.data.gov.uk/id/local-authority/29UP,Tonbridge & Malling Borough Council,10/5/2022,0041034775/6,41034775, 166.67,National Westminster Bank Plc,00894500,,Electricity,Homelessness,C01AATNHS21002,
http://statistics.data.gov.uk/id/local-authority/29UP,Tonbridge & Malling Borough Council,10/5/2022,0041034781/1,41034781, 20.00,Computershare Voucher Services,01212600,,Childcare Scheme,Finance Sals&Overheads,D01AFDF0911136,
http://statistics.data.gov.uk/id/local-authority/29UP,Tonbridge & Malling Borough Council,10/5/2022,0041034781/2,41034781, 1.40,Computershare Voucher Services,01212600,,National Insurance,Finance Sals&Overheads,D01AFDF0911191,
http://statistics.data.gov.uk/id/local-authority/29UP,Tonbridge & Malling Borough Council,10/5/2022,0041034781/3,41034781, 50.00,Computershare Voucher Services,01212600,,Childcare Scheme,Legal Sals&Overheads,D01ARDR0011136,
http://statistics.data.gov.uk/id/local-authority/29UP,Tonbridge & Malling Borough Council,10/5/2022,0041034781/4,41034781, 3.50,Computershare Voucher Services,01212600,,National Insurance,Legal Sals&Overheads,D01ARDR0011191,
http://statistics.data.gov.uk/id/local-authority/29UP,Tonbridge & Malling Borough Council,10/5/2022,0041034781/5,41034781, 1.40,Computershare Voucher Services,01212600,,National Insurance,Env Hlth & Hsg Sals&Overheads,D01AVDV0211191,
http://statistics.data.gov.uk/id/local-authority/29UP,Tonbridge & Malling Borough Council,10/5/2022,0041034781/6,41034781, 243.00,Computershare Voucher Services,01212600,,Childcare Scheme,Env Hlth & Hsg Sals&Overheads,D01AVDV0711136,
http://statistics.data.gov.uk/id/local-authority/29UP,Tonbridge & Malling Borough Council,10/5/2022,0041034781/7,41034781, 20.00,Computershare Voucher Services,01212600,,National Insurance,Env Hlth & Hsg Sals&Overheads,D01AVDV0711191,
http://statistics.data.gov.uk/id/local-authority/29UP,Tonbridge & Malling Borough Council,10/5/2022,0041034781/8,41034781, 17.01,Computershare Voucher Services,01212600,,National Insurance,Env Hlth & Hsg Sals&Overheads,D01AVDV0711191,
http://statistics.data.gov.uk/id/local-authority/29UP,Tonbridge & Malling Borough Council,10/5/2022,0041034782/1,41034782, 9512.00,Grant Thornton UK LLP,01407400,,Audit Fees,Public Accountability,D29LR000044223,410032259
http://statistics.data.gov.uk/id/local-authority/29UP,Tonbridge & Malling Borough Council,10/5/2022,0041034783/1,41034783, 646.99,KCS,00054200,,Leasing Charges,Multi Function Devices,D22GB000044038,
http://statistics.data.gov.uk/id/local-authority/29UP,Tonbridge & Malling Borough Council,10/5/2022,0041034788/1,41034788, 59.95,Allpay Limited,01816500,,Giro / Swipe Card Charges,Local Revenue & NNDR Collect,D41QA000044083,
http://statistics.data.gov.uk/id/local-authority/29UP,Tonbridge & Malling Borough Council,10/6/2022,0041034793/1,41034793, 26.00,REDACTED PERSONAL DATA,01866300,,Energy Rebate Scheme Disc,Council Tax Support,D42QFFUEL48104,
http://statistics.data.gov.uk/id/local-authority/29UP,Tonbridge & Malling Borough Council,10/7/2022,0041034802/1,41034802, 20.43,WorldPay Ltd,01402000,991280207,Credit Card Commission,Banking Arrangements,D43QK000044082,
http://statistics.data.gov.uk/id/local-authority/29UP,Tonbridge & Malling Borough Council,10/10/2022,0041034804/1,41034804, 15.00,BNP Paribas,01360500,,Bank Charges,Banking Arrangements,D43QK000044222,
http://statistics.data.gov.uk/id/local-authority/29UP,Tonbridge & Malling Borough Council,10/11/2022,0031018935/3,31018935, 170.88,British Telecommunications Plc,00012800,,Maintenance - General,Security Services Management,E09GA000040135,
http://statistics.data.gov.uk/id/local-authority/29UP,Tonbridge & Malling Borough Council,10/12/2022,0011044963/1,11044963, 5412.00,Idox Software Ltd,00962400,,Electronic Elector Responses,Electoral Registration,D31MF000044102,110069660
http://statistics.data.gov.uk/id/local-authority/29UP,Tonbridge & Malling Borough Council,10/12/2022,0011044963/2,11044963, 485.00,Idox Software Ltd,00962400,,Electronic Elector Responses,Electoral Registration,D31MF000044102,110069660
http://statistics.data.gov.uk/id/local-authority/29UP,Tonbridge & Malling Borough Council,10/12/2022,0011044963/3,11044963, 295.00,Idox Software Ltd,00962400,,Electronic Elector Responses,Electoral Registration,D31MF000044102,110069660
http://statistics.data.gov.uk/id/local-authority/29UP,Tonbridge & Malling Borough Council,10/12/2022,0011044963/4,11044963, 295.00,Idox Software Ltd,00962400,,Electronic Elector Responses,Electoral Registration,D31MF000044102,110069660
http://statistics.data.gov.uk/id/local-authority/29UP,Tonbridge & Malling Borough Council,10/12/2022,0011044964/1,11044964, 60.00,REDACTED PERSONAL DATA,00022600,,Other Expenses,Mayoral & Other Member Support,D29LX000048010,110069792
http://statistics.data.gov.uk/id/local-authority/29UP,Tonbridge & Malling Borough Council,10/12/2022,0011044965/1,11044965, 222.50,Chillmech Limited,00978700,,BRREP Servicing-Air Condition,Gibson Building West,M15KBP20001935,110069450
http://statistics.data.gov.uk/id/local-authority/29UP,Tonbridge & Malling Borough Council,10/12/2022,0011044966/1,11044966, 180.00,West Country Doors (London),00936500,,BRREP Servicing-entrance doors,Gibson Building West,M15KBP20001927,110069377
http://statistics.data.gov.uk/id/local-authority/29UP,Tonbridge & Malling Borough Council,10/12/2022,0011044967/1,11044967, 883.25,Coolburn Air Conditioning Ltd,01137900,,BRREP Servicing - air handling,Leis Man Poult Wood Golf Centr,M15HEP20001936,110069703
http://statistics.data.gov.uk/id/local-authority/29UP,Tonbridge & Malling Borough Council,10/12/2022,0011044968/1,11044968, 3226.00,Coolburn Air Conditioning Ltd,01137900,,BRREP Servicing-Air Condition,Gibson Building West,M15KBP20001935,110069768
http://statistics.data.gov.uk/id/local-authority/29UP,Tonbridge & Malling Borough Council,10/12/2022,0011044969/1,11044969, 840.00,System Hygienics Ltd,00600300,,BRREP Fire Damper Testing,Larkfield Leisure Centre,M15HDP30001970,110069786
http://statistics.data.gov.uk/id/local-authority/29UP,Tonbridge & Malling Borough Council,10/12/2022,0011044970/1,11044970, 575.00,Lemon Drainage Services LTD,01761600,,BRREP Servicing - Pumping Stn,Pleasure Grounds & Open Spaces,M15HHP20001931,110069460
http://statistics.data.gov.uk/id/local-authority/29UP,Tonbridge & Malling Borough Council,10/12/2022,0011044971/1,11044971, 33589.94,Mace Limited,01837400,,Economic Development & Regen,Eco Dev & Reg Gen Bus Support,D52TD000047027,110069558
http://statistics.data.gov.uk/id/local-authority/29UP,Tonbridge & Malling Borough Council,10/12/2022,0011044972/1,11044972, 1047.50,H20 Servicing Limited,00888800,808041553,BRREP Servicing - pool plant,Tonbridge Swimming Pool,M15HBP20001910,110069697
http://statistics.data.gov.uk/id/local-authority/29UP,Tonbridge & Malling Borough Council,10/12/2022,0011044973/1,11044973, 140.00,East Sussex Fire Ltd,01843100,,Repairs & Mtce to Buildings,Homelessness,C01AATNHS20101,110069587
http://statistics.data.gov.uk/id/local-authority/29UP,Tonbridge & Malling Borough Council,10/12/2022,0011044974/1,11044974, 1188.50,H20 Servicing Limited,00888800,808041553,BRREP Servicing - pool plant,Larkfield Leisure Centre,M15HDP20001910,110069697
http://statistics.data.gov.uk/id/local-authority/29UP,Tonbridge & Malling Borough Council,10/12/2022,0011044975/1,11044975, 1115.00,System Hygienics Ltd,00600300,,BRREP Fire Damper Testing,Tonbridge Swimming Pool,M15HBP30001970,110069784
http://statistics.data.gov.uk/id/local-authority/29UP,Tonbridge & Malling Borough Council,10/12/2022,0011044976/1,11044976, 687.00,Southern Lightning Engineers Ltd,00094000,,BRREP Servicing-Lightning Prot,Angel Centre,M15HAP20001942,110069683
http://statistics.data.gov.uk/id/local-authority/29UP,Tonbridge & Malling Borough Council,10/12/2022,0011044977/1,11044977, 1415.61,Kohler Mira Limited,00902600,779588443,BRREP Servicing - pool plant,Tonbridge Swimming Pool,M15HBP20001910,110069825
http://statistics.data.gov.uk/id/local-authority/29UP,Tonbridge & Malling Borough Council,10/12/2022,0011044978/1,11044978, 644.69,Kohler Mira Limited,00902600,779588443,BRREP Servicing - pool plant,Tonbridge Swimming Pool,M15HBP20001910,110069825
http://statistics.data.gov.uk/id/local-authority/29UP,Tonbridge & Malling Borough Council,10/12/2022,0011044979/1,11044979, 392.93,NLC Nova Lift Company Ltd,01735600,,BRREP Servicing - lifts,Leis Man Poult Wood Golf Centr,M15HEP20001930,110069818
http://statistics.data.gov.uk/id/local-authority/29UP,Tonbridge & Malling Borough Council,10/12/2022,0011044980/1,11044980, 1826.00,Southern Lightning Engineers Ltd,00094000,,BRREP Servicing-Lightning Prot,Larkfield Leisure Centre,M15HDP20001942,110069809
http://statistics.data.gov.uk/id/local-authority/29UP,Tonbridge & Malling Borough Council,10/12/2022,0011044981/1,11044981, 233.64,KCS,00054200,,Cleaning & Domestic Supplies,Cleaning & Security,D21FD000026001,110069807
http://statistics.data.gov.uk/id/local-authority/29UP,Tonbridge & Malling Borough Council,10/12/2022,0011044982/1,11044982, 263.50,K T Fire Protection Ltd,00057000,,BRREP Servicing - FireAlarmSys,Leis Man Poult Wood Golf Centr,M15HEP20001937,110069667
http://statistics.data.gov.uk/id/local-authority/29UP,Tonbridge & Malling Borough Council,10/12/2022,0011044983/1,11044983, 295.34,K T Fire Protection Ltd,00057000,,BRREP Servicing - FireAlarmSys,Larkfield Leisure Centre,M15HDP20001937,110069672
http://statistics.data.gov.uk/id/local-authority/29UP,Tonbridge & Malling Borough Council,10/12/2022,0011044984/1,11044984, 325.70,K T Fire Protection Ltd,00057000,,BRREP Servicing - FireAlarmSys,Gibson Building East,M15KGP20001937,110069665
http://statistics.data.gov.uk/id/local-authority/29UP,Tonbridge & Malling Borough Council,10/12/2022,0011044985/1,11044985, 185.00,K T Fire Protection Ltd,00057000,,BRREP Servicing - FireAlarmSys,Gibson Building West,M15KBP20001937,110069664
http://statistics.data.gov.uk/id/local-authority/29UP,Tonbridge & Malling Borough Council,10/12/2022,0011044986/1,11044986, 2.49,KCS,00054200,,Stationery,Admin & Prop Sals&Overheads,D01AA000043003,110069826
http://statistics.data.gov.uk/id/local-authority/29UP,Tonbridge & Malling Borough Council,10/12/2022,0011044986/2,11044986, 4.47,KCS,00054200,,Stationery,Admin & Prop Sals&Overheads,D01AA000043003,110069826
http://statistics.data.gov.uk/id/local-authority/29UP,Tonbridge & Malling Borough Council,10/12/2022,0011044986/3,11044986, 3.49,KCS,00054200,,Stationery,Admin & Prop Sals&Overheads,D01AA000043003,110069826
http://statistics.data.gov.uk/id/local-authority/29UP,Tonbridge & Malling Borough Council,10/12/2022,0011044986/4,11044986, 9.90,KCS,00054200,,Stationery,Admin & Prop Sals&Overheads,D01AA000043003,110069826
http://statistics.data.gov.uk/id/local-authority/29UP,Tonbridge & Malling Borough Council,10/12/2022,0011044987/1,11044987, 52650.00,G Baker Roofing Ltd,01664400,522705274,BRREP General Maintenance,Larkfield Leisure Centre,M15HDP10001900,110069699
http://statistics.data.gov.uk/id/local-authority/29UP,Tonbridge & Malling Borough Council,10/12/2022,0011044988/1,11044988, 613.44,Venn Group Ltd,00914300,,Temporary Staff,Legal Sals&Overheads,D01ARDR0011300,
http://statistics.data.gov.uk/id/local-authority/29UP,Tonbridge & Malling Borough Council,10/12/2022,0011044989/1,11044989, 1691.90,Wateringbury PO and Flanagan's Local Pro,01866200,,Economic Development & Regen,Eco Dev & Reg Gen Bus Support,D52TD000047027,
http://statistics.data.gov.uk/id/local-authority/29UP,Tonbridge & Malling Borough Council,10/12/2022,0011044990/1,11044990, 1217.80,Sellick Partnership Group Limited,01336800,,Temporary Staff,Legal Sals&Overheads,D01ARDR0011300,
http://statistics.data.gov.uk/id/local-authority/29UP,Tonbridge & Malling Borough Council,10/12/2022,0011044991/1,11044991, 129.42,Atlas Facilities Managment Limited ,01075900,,Miscellaneous Services,Cleaning & Security,D21FDDD1044015,
http://statistics.data.gov.uk/id/local-authority/29UP,Tonbridge & Malling Borough Council,10/12/2022,0011044992/1,11044992, 301.64,Castle Water,01696500,,Estate Management Charge,Land Review,D40PS000020400,
http://statistics.data.gov.uk/id/local-authority/29UP,Tonbridge & Malling Borough Council,10/12/2022,0011044993/1,11044993, 144.00,Royal Cars,01857400,,Hospitality,Mayoral & Other Member Support,D29LX000048003,
http://statistics.data.gov.uk/id/local-authority/29UP,Tonbridge & Malling Borough Council,10/12/2022,0011044994/1,11044994, 340.48,Canon (UK) Limited,00298700,,Purchases - Paper,Printing,D22GA000040102,
http://statistics.data.gov.uk/id/local-authority/29UP,Tonbridge & Malling Borough Council,10/12/2022,0011044995/1,11044995, 195.28,Chubb Fire & Security Ltd,00115400,174605362,BRREP Servicing-IntruderAlarm,Tonbridge Swimming Pool,M15HBP20001939,
http://statistics.data.gov.uk/id/local-authority/29UP,Tonbridge & Malling Borough Council,10/12/2022,0011044998/1,11044998, 964.96,Royal Mail,00086200,,Postages - Business Reply,Conduct of Elections,D31MG000045003,
http://statistics.data.gov.uk/id/local-authority/29UP,Tonbridge & Malling Borough Council,10/12/2022,0011044998/2,11044998, 65.00,Royal Mail,00086200,,Purchases,Business Reply Stock Account,K14AT000001002,
http://statistics.data.gov.uk/id/local-authority/29UP,Tonbridge & Malling Borough Council,10/12/2022,0011044999/1,11044999, 1788.48,Royal Mail,00086200,,Purchases,Mailsort Stock Account,K37BR000001002,
http://statistics.data.gov.uk/id/local-authority/29UP,Tonbridge & Malling Borough Council,10/12/2022,0011044999/2,11044999, 2.45,Royal Mail,00086200,,Purchases,Mailsort Stock Account,K37BR000001002,
http://statistics.data.gov.uk/id/local-authority/29UP,Tonbridge & Malling Borough Council,10/12/2022,0011045000/1,11045000, 2000.00,Cornerstones Barristers,01359100,,Legal Fees,Legal Sals&Overheads,D01ARDR0044002,
http://statistics.data.gov.uk/id/local-authority/29UP,Tonbridge & Malling Borough Council,10/12/2022,0011045001/1,11045001, 42.72,Biffa Waste Services Ltd,01284500,,Trade Refuse Charges,Cleaning & Security,D21FD000044008,
http://statistics.data.gov.uk/id/local-authority/29UP,Tonbridge & Malling Borough Council,10/12/2022,0011045002/1,11045002, 231.15,Biffa Waste Services Ltd,01284500,,Trade Refuse Charges,Cleaning & Security,D21FD000044008,
http://statistics.data.gov.uk/id/local-authority/29UP,Tonbridge & Malling Borough Council,10/12/2022,0011045003/1,11045003, 74.72,Biffa Waste Services Ltd,01284500,,Trade Refuse Charges,Cleaning & Security,D21FD000044008,
http://statistics.data.gov.uk/id/local-authority/29UP,Tonbridge & Malling Borough Council,10/12/2022,0011045004/3,11045004, 292.79,Biffa Waste Services Ltd,01284500,,Trade Refuse Charges,Cleaning & Security,D21FD000044008,
http://statistics.data.gov.uk/id/local-authority/29UP,Tonbridge & Malling Borough Council,10/12/2022,0011045005/3,11045005, 42.72,Biffa Waste Services Ltd,01284500,,Trade Refuse Charges,Cleaning & Security,D21FD000044008,
http://statistics.data.gov.uk/id/local-authority/29UP,Tonbridge & Malling Borough Council,10/12/2022,0011045006/3,11045006, 146.32,Biffa Waste Services Ltd,01284500,,Trade Refuse Charges,Cleaning & Security,D21FD000044008,
http://statistics.data.gov.uk/id/local-authority/29UP,Tonbridge & Malling Borough Council,10/12/2022,0011045008/3,11045008, 75.00,Francis Taylor Building,01688700,,Legal Fees,Legal Sals&Overheads,D01ARDR0044002,
http://statistics.data.gov.uk/id/local-authority/29UP,Tonbridge & Malling Borough Council,10/12/2022,0011045009/3,11045009, 1217.80,Sellick Partnership Group Limited,01336800,,Temporary Staff,Legal Sals&Overheads,D01ARDR0011300,
http://statistics.data.gov.uk/id/local-authority/29UP,Tonbridge & Malling Borough Council,10/12/2022,0011045010/3,11045010, 863.36,Venn Group Ltd,00914300,,Temporary Staff,Legal Sals&Overheads,D01ARDR0011300,
http://statistics.data.gov.uk/id/local-authority/29UP,Tonbridge & Malling Borough Council,10/12/2022,0011045011/1,11045011, 120.00,Sevenoaks Mayor's Charity Account,01273000,,Hospitality,Mayoral & Other Member Support,D29LX000048003,
http://statistics.data.gov.uk/id/local-authority/29UP,Tonbridge & Malling Borough Council,10/12/2022,0011045012/3,11045012, 133.30,Ovenden Papers Ltd,01599100,,Purchases - Paper,Printing,D22GA000040102,
http://statistics.data.gov.uk/id/local-authority/29UP,Tonbridge & Malling Borough Council,10/12/2022,0011045013/3,11045013, 841.45,Antalis,01556800,317187204,Purchases - Paper,Printing,D22GA000040102,
http://statistics.data.gov.uk/id/local-authority/29UP,Tonbridge & Malling Borough Council,10/12/2022,0011045014/3,11045014, 146.32,Biffa Waste Services Ltd,01284500,,Trade Refuse Charges,Cleaning & Security,D21FD000044008,
http://statistics.data.gov.uk/id/local-authority/29UP,Tonbridge & Malling Borough Council,10/12/2022,0011045015/3,11045015, 42.72,Biffa Waste Services Ltd,01284500,,Trade Refuse Charges,Cleaning & Security,D21FD000044008,
http://statistics.data.gov.uk/id/local-authority/29UP,Tonbridge & Malling Borough Council,10/12/2022,0011045016/3,11045016, 74.72,Biffa Waste Services Ltd,01284500,,Trade Refuse Charges,Cleaning & Security,D21FD000044008,
http://statistics.data.gov.uk/id/local-authority/29UP,Tonbridge & Malling Borough Council,10/12/2022,0011045017/3,11045017, 42.72,Biffa Waste Services Ltd,01284500,,Trade Refuse Charges,Cleaning & Security,D21FD000044008,
http://statistics.data.gov.uk/id/local-authority/29UP,Tonbridge & Malling Borough Council,10/12/2022,0011045018/1,11045018, 14.51,Scottish Water Business Stream Ltd,01641100,,Estate Management Charge,Land Review,D40PS000020400,
http://statistics.data.gov.uk/id/local-authority/29UP,Tonbridge & Malling Borough Council,10/12/2022,0011045019/3,11045019, 133.30,Ovenden Papers Ltd,01599100,,Purchases - Paper,Printing,D22GA000040102,
http://statistics.data.gov.uk/id/local-authority/29UP,Tonbridge & Malling Borough Council,10/12/2022,0011045020/3,11045020, 1217.80,Sellick Partnership Group Limited,01336800,,Temporary Staff,Legal Sals&Overheads,D01ARDR0011300,
http://statistics.data.gov.uk/id/local-authority/29UP,Tonbridge & Malling Borough Council,10/12/2022,0011045021/3,11045021, 1760.00,Blackwood Bayne Ltd,01681400,,Marketing,Tonbridge Castle Gatehouse,B40TGZ99944215,
http://statistics.data.gov.uk/id/local-authority/29UP,Tonbridge & Malling Borough Council,10/12/2022,0011045022/1,11045022, 646.00,Disclosure & Barring Service,00865900,,Professional Fees,Licences - Fee Paying,H27SH000044001,
http://statistics.data.gov.uk/id/local-authority/29UP,Tonbridge & Malling Borough Council,10/12/2022,0012008507/1,12008507, 34583.13,Bytes Software Services,01676900,823818226,Software Hire & Support,Information Technology,D27KD000044059,410032251
http://statistics.data.gov.uk/id/local-authority/29UP,Tonbridge & Malling Borough Council,10/12/2022,0012008508/1,12008508, 7794.31,Bytes Software Services,01676900,823818226,Software Hire & Support,Information Technology,D27KD000044059,410032252
http://statistics.data.gov.uk/id/local-authority/29UP,Tonbridge & Malling Borough Council,10/12/2022,0012008509/1,12008509, 4824.00,SureCloud Limited,01155300,,Software Hire & Support,Information Technology,D27KD000044059,410032267
http://statistics.data.gov.uk/id/local-authority/29UP,Tonbridge & Malling Borough Council,10/12/2022,0012008510/3,12008510, 10.14,Daisy Communications,01068100,,Telephones - Rentals,General Admin Telephones,D24GT000045005,
http://statistics.data.gov.uk/id/local-authority/29UP,Tonbridge & Malling Borough Council,10/12/2022,0012008510/4,12008510, 285.76,Daisy Communications,01068100,,Telephones - Call Costs,General Admin Telephones,D24GT000045006,
http://statistics.data.gov.uk/id/local-authority/29UP,Tonbridge & Malling Borough Council,10/12/2022,0012008510/5,12008510, 95.92,Daisy Communications,01068100,,Leased Lines & Modems,Information Technology,D27KD000045011,
http://statistics.data.gov.uk/id/local-authority/29UP,Tonbridge & Malling Borough Council,10/12/2022,0012008510/6,12008510, 74.46,Daisy Communications,01068100,,Maintenance - General,Security Services Management,E09GA000040135,
http://statistics.data.gov.uk/id/local-authority/29UP,Tonbridge & Malling Borough Council,10/12/2022,0012008511/1,12008511, 3187.32,Cisilion Ltd,00708800,,Maintenance - Ancillary Equip,Information Technology,D27KD000040137,410032269
http://statistics.data.gov.uk/id/local-authority/29UP,Tonbridge & Malling Borough Council,10/12/2022,0012008512/3,12008512, 1055.74,Canon (UK) Limited,00298700,,Software Hire & Support,Information Technology,D27KD000044059,
http://statistics.data.gov.uk/id/local-authority/29UP,Tonbridge & Malling Borough Council,10/12/2022,0021038191/1,21038191, 1425.00,Premier Education Shirly Sports Ltd,01816200,,Partnership Fees,Youth Partnerships,B33PG000044048,210056997
http://statistics.data.gov.uk/id/local-authority/29UP,Tonbridge & Malling Borough Council,10/12/2022,0021038192/1,21038192, 527.40,G.L. & R.G. Bourne,00737500,,Gates / Security,Haysden Country Park,B22LC000044017,210056722
http://statistics.data.gov.uk/id/local-authority/29UP,Tonbridge & Malling Borough Council,10/12/2022,0021038193/1,21038193, 40.00,G.L. & R.G. Bourne,00737500,,Maintenance of Grounds,Haysden Country Park,B22LC000020402,210056723
http://statistics.data.gov.uk/id/local-authority/29UP,Tonbridge & Malling Borough Council,10/12/2022,0021038194/1,21038194, 72.30,G.L. & R.G. Bourne,00737500,,Gates / Security,Haysden Country Park,B22LC000044017,210056722
http://statistics.data.gov.uk/id/local-authority/29UP,Tonbridge & Malling Borough Council,10/12/2022,0021038195/1,21038195, 647.00,Cameron Electrical,01849600,,Maintenance of Play Equipment,Open Spaces & Amenity Areas,B22LE000020503,210056971
http://statistics.data.gov.uk/id/local-authority/29UP,Tonbridge & Malling Borough Council,10/12/2022,0021038196/1,21038196, 800.00,Landscape Services Ltd,00057600,,Maintenance of Grounds,Sports Grounds,B13ET000020402,210056983
http://statistics.data.gov.uk/id/local-authority/29UP,Tonbridge & Malling Borough Council,10/12/2022,0021038197/1,21038197, 5975.00,Cowdrey Cricket Club,00899500,,Maintenance of Grounds,Sports Grounds,B13ET000020402,210057002
http://statistics.data.gov.uk/id/local-authority/29UP,Tonbridge & Malling Borough Council,10/12/2022,0021038198/1,21038198, 750.00,Robert Graham T/A Sustainable Land Manag,00040700,,Contract Payments,LLCP Facility Improv,P05FF000009904,210056989
http://statistics.data.gov.uk/id/local-authority/29UP,Tonbridge & Malling Borough Council,10/12/2022,0021038199/1,21038199, 1200.00,SWS Countryside & Landscape,01567200,,Health & Safety - Trees,Countryside/Woodland Mgt,B22LG000044045,
http://statistics.data.gov.uk/id/local-authority/29UP,Tonbridge & Malling Borough Council,10/12/2022,0021038200/1,21038200, 1880.00,SWS Countryside & Landscape,01567200,,Health & Safety - Trees,Countryside/Woodland Mgt,B22LG000044045,
http://statistics.data.gov.uk/id/local-authority/29UP,Tonbridge & Malling Borough Council,10/12/2022,0021038201/1,21038201, 19967.78,SWS Countryside & Landscape,01567200,,Health & Safety - Trees,Countryside/Woodland Mgt,B22LG000044045,
http://statistics.data.gov.uk/id/local-authority/29UP,Tonbridge & Malling Borough Council,10/12/2022,0021038202/1,21038202, 246.88,British Gas,01148500,,Electricity,Homelessness,C01AA000021002,
http://statistics.data.gov.uk/id/local-authority/29UP,Tonbridge & Malling Borough Council,10/12/2022,0022027080/1,22027080, 82.50,Memphis Belle Sandwich Bar,00983600,,Healthy Living Initiatives,Public Health - Healthy Living,H40SYVH0048145,220003270
http://statistics.data.gov.uk/id/local-authority/29UP,Tonbridge & Malling Borough Council,10/12/2022,0022027081/3,22027081, 1488.00,Specialist Hygiene Services,01466100,,Cleaning & Domestic Supplies,Haysden Country Park,B22LC000026001,
http://statistics.data.gov.uk/id/local-authority/29UP,Tonbridge & Malling Borough Council,10/12/2022,0022027081/4,22027081, 3773.00,Specialist Hygiene Services,01466100,,Contract Payments,Public Conveniences,H22SC000054001,
http://statistics.data.gov.uk/id/local-authority/29UP,Tonbridge & Malling Borough Council,10/12/2022,0022027082/1,22027082, 55.50,Biffa Waste Services Ltd,01284500,,Trade Refuse Charges,Cleaning & Security,D21FD000044008,
http://statistics.data.gov.uk/id/local-authority/29UP,Tonbridge & Malling Borough Council,10/12/2022,0022027083/1,22027083, 1562.00,1st  Steps Housing Kent,01716100,,Temporary Accommodation,Homelessness,C01AA000044051,
http://statistics.data.gov.uk/id/local-authority/29UP,Tonbridge & Malling Borough Council,10/12/2022,0022027084/1,22027084, 2160.00,House to Home Lettings Ltd ,01647600,,Temporary Accommodation,Homelessness,C01AA000044051,
http://statistics.data.gov.uk/id/local-authority/29UP,Tonbridge & Malling Borough Council,10/12/2022,0022027086/1,22027086, 6198.00,Kent Accommodation Ltd,01722000,,Temporary Accommodation,Homelessness,C01AA000044051,
http://statistics.data.gov.uk/id/local-authority/29UP,Tonbridge & Malling Borough Council,10/12/2022,0022027087/1,22027087, 1940.00,Kent Housing,01503200,,Temporary Accommodation,Homelessness,C01AA000044051,
http://statistics.data.gov.uk/id/local-authority/29UP,Tonbridge & Malling Borough Council,10/12/2022,0022027088/1,22027088, 8040.00,Less Homeless Ltd,01489300,,Temporary Accommodation,Homelessness,C01AA000044051,
http://statistics.data.gov.uk/id/local-authority/29UP,Tonbridge & Malling Borough Council,10/12/2022,0022027089/1,22027089, 1500.00,Less Homeless Ltd,01489300,,Other Expenses,Ukrainian Refugee Assistance,D54UA000048010,
http://statistics.data.gov.uk/id/local-authority/29UP,Tonbridge & Malling Borough Council,10/12/2022,0022027090/1,22027090, 625.00,Monitor Pest Control Ltd,01476700,,Other Expenses,Pest Control,H24SE000048010,
http://statistics.data.gov.uk/id/local-authority/29UP,Tonbridge & Malling Borough Council,10/12/2022,0022027091/1,22027091, 2027.64,Premier Inn,01217400,,Temporary Accommodation,Homelessness,C01AA000044051,
http://statistics.data.gov.uk/id/local-authority/29UP,Tonbridge & Malling Borough Council,10/12/2022,0022027092/1,22027092, 5728.00,Premier Property Providers,01785400,,Temporary Accommodation,Homelessness,C01AA000044051,
http://statistics.data.gov.uk/id/local-authority/29UP,Tonbridge & Malling Borough Council,10/12/2022,0022027093/1,22027093, 9234.00,Simon Niblett Lettings,00072600,,Temporary Accommodation,Homelessness,C01AA000044051,
http://statistics.data.gov.uk/id/local-authority/29UP,Tonbridge & Malling Borough Council,10/12/2022,0022027094/1,22027094, 660.00,Simon Niblett Lettings,00072600,,Temporary Accommodation,Homelessness,C01AA000044051,
http://statistics.data.gov.uk/id/local-authority/29UP,Tonbridge & Malling Borough Council,10/12/2022,0022027095/1,22027095, 2460.00,Simply Rented Ltd ,01691400,,Temporary Accommodation,Homelessness,C01AA000044051,
http://statistics.data.gov.uk/id/local-authority/29UP,Tonbridge & Malling Borough Council,10/12/2022,0022027096/1,22027096, 680.00,Smart Property Professionals,01815100,,Temporary Accommodation,Homelessness,C01AA000044051,
http://statistics.data.gov.uk/id/local-authority/29UP,Tonbridge & Malling Borough Council,10/12/2022,0022027097/1,22027097, 2154.83,The Care Group-Housing & Care Trust,01699600,,Temporary Accommodation,Homelessness,C01AA000044051,
http://statistics.data.gov.uk/id/local-authority/29UP,Tonbridge & Malling Borough Council,10/12/2022,0022027098/1,22027098, 11468.00,SPA CAFFE LIMITED,00127100,,Temporary Accommodation,Homelessness,C01AA000044051,
http://statistics.data.gov.uk/id/local-authority/29UP,Tonbridge & Malling Borough Council,10/12/2022,0022027099/1,22027099, 465.00,RoSPA Enterprises Ltd,00085200,,Professional Membership,Env Hlth & Hsg Sals&Overheads,D01AVDV0147001,
http://statistics.data.gov.uk/id/local-authority/29UP,Tonbridge & Malling Borough Council,10/12/2022,0022027100/1,22027100, 9939.99,Independent Reviews Ltd,01657100,,Temporary Staff,Env Hlth & Hsg Sals&Overheads,D01AVDV0711300,
http://statistics.data.gov.uk/id/local-authority/29UP,Tonbridge & Malling Borough Council,10/12/2022,0022027101/1,22027101, 730.00,MCL Ltd In Liquidation - See Diary,00064100,,Other Expenses,Disabled Facilities Grant Mand,P03AC000009908,
http://statistics.data.gov.uk/id/local-authority/29UP,Tonbridge & Malling Borough Council,10/12/2022,0022027102/1,22027102, 34674.00,Paramount Independent Property Suppliers,01595300,,Temporary Accommodation,Homelessness,C01AA000044051,
http://statistics.data.gov.uk/id/local-authority/29UP,Tonbridge & Malling Borough Council,10/12/2022,0031018930/7,31018930, 4312.50,G4S Cash Solutions ( UK ) Ltd,01398400,,Cash Collection,Parking Off-Street,E10HAE00144007,
http://statistics.data.gov.uk/id/local-authority/29UP,Tonbridge & Malling Borough Council,10/12/2022,0031018931/3,31018931, 4215.00,G4S Cash Solutions ( UK ) Ltd,01398400,,Cash Collection,Parking Off-Street,E10HAE00144007,
http://statistics.data.gov.uk/id/local-authority/29UP,Tonbridge & Malling Borough Council,10/12/2022,0031018933/3,31018933, 1550.35,CDER Group,01773300,,Adjudication & Enforcement Ser,Parking Off-Street,E10HA000044230,
http://statistics.data.gov.uk/id/local-authority/29UP,Tonbridge & Malling Borough Council,10/12/2022,0031018934/3,31018934, 170.85,British Telecommunications Plc,00012800,,Maintenance - General,Security Services Management,E09GA000040135,
http://statistics.data.gov.uk/id/local-authority/29UP,Tonbridge & Malling Borough Council,10/12/2022,0031018936/4,31018936, 6.05,Npower Ltd,01675800,,Electricity,Parking Off-Street,E10HA000021002,
http://statistics.data.gov.uk/id/local-authority/29UP,Tonbridge & Malling Borough Council,10/12/2022,0031018936/5,31018936, 134.22,Npower Ltd,01675800,,Electricity,Parking Off-Street,E10HA000021002,
http://statistics.data.gov.uk/id/local-authority/29UP,Tonbridge & Malling Borough Council,10/12/2022,0031018937/4,31018937, 1.96,Npower Ltd,01675800,,Electricity,Parking Off-Street,E10HA000021002,
http://statistics.data.gov.uk/id/local-authority/29UP,Tonbridge & Malling Borough Council,10/12/2022,0031018937/5,31018937, 50.92,Npower Ltd,01675800,,Electricity,Parking Off-Street,E10HA000021002,
http://statistics.data.gov.uk/id/local-authority/29UP,Tonbridge & Malling Borough Council,10/12/2022,0031018938/4,31018938, 1.09,Npower Ltd,01675800,,Electricity,Parking Off-Street,E10HA000021002,
http://statistics.data.gov.uk/id/local-authority/29UP,Tonbridge & Malling Borough Council,10/12/2022,0031018938/5,31018938, 28.88,Npower Ltd,01675800,,Electricity,Parking Off-Street,E10HA000021002,
http://statistics.data.gov.uk/id/local-authority/29UP,Tonbridge & Malling Borough Council,10/12/2022,0031018941/3,31018941, 1260.00,Sevenoaks District Council,00089300,,Out of Hours Service,Civil Contingencies,D33NA000045025,
http://statistics.data.gov.uk/id/local-authority/29UP,Tonbridge & Malling Borough Council,10/12/2022,0031018942/3,31018942, 69.83,Shell U.K. Oil Products Limited,01673300,,"Petrol, Diesel & Oil",Patrolling,B22LF000030106,
http://statistics.data.gov.uk/id/local-authority/29UP,Tonbridge & Malling Borough Council,10/12/2022,0031018942/4,31018942, 53.47,Shell U.K. Oil Products Limited,01673300,,"Petrol, Diesel & Oil",Parking Off-Street,E10HA000030106,
http://statistics.data.gov.uk/id/local-authority/29UP,Tonbridge & Malling Borough Council,10/12/2022,0031018942/5,31018942, 53.47,Shell U.K. Oil Products Limited,01673300,,"Petrol, Diesel & Oil",Parking On-Street,E10HD000030106,
http://statistics.data.gov.uk/id/local-authority/29UP,Tonbridge & Malling Borough Council,10/12/2022,0031018943/3,31018943, 83.52,Shell U.K. Oil Products Limited,01673300,,"Petrol, Diesel & Oil",Patrolling,B22LF000030106,
http://statistics.data.gov.uk/id/local-authority/29UP,Tonbridge & Malling Borough Council,10/12/2022,0031018943/4,31018943, 118.21,Shell U.K. Oil Products Limited,01673300,,"Petrol, Diesel & Oil",Parking Off-Street,E10HA000030106,
http://statistics.data.gov.uk/id/local-authority/29UP,Tonbridge & Malling Borough Council,10/12/2022,0031018943/5,31018943, 118.21,Shell U.K. Oil Products Limited,01673300,,"Petrol, Diesel & Oil",Parking On-Street,E10HD000030106,
http://statistics.data.gov.uk/id/local-authority/29UP,Tonbridge & Malling Borough Council,10/12/2022,0031018944/3,31018944, 26747.28,Tunbridge Wells Borough Council,00844600,,CCTV Monitoring Station,Security Services Management,E09GA000051020,
http://statistics.data.gov.uk/id/local-authority/29UP,Tonbridge & Malling Borough Council,10/12/2022,0031018945/1,31018945, 2502.00,Eiger Safety,01103300,,Tonbridge Christmas Lighting,Eco Dev & Reg Ton Chris Light,D52TF000047015,210056969
http://statistics.data.gov.uk/id/local-authority/29UP,Tonbridge & Malling Borough Council,10/12/2022,0031018946/1,31018946, 122.55,Imperial Civil Enforcement Solutions,00057200,,Adjudication & Enforcement Ser,Parking Off-Street,E10HA000044230,
http://statistics.data.gov.uk/id/local-authority/29UP,Tonbridge & Malling Borough Council,10/12/2022,0031018947/1,31018947, 192.78,KM Media Group Ltd,00053900,,Advertising General,Parking On-Street,E10HDZ99944216,310042893
http://statistics.data.gov.uk/id/local-authority/29UP,Tonbridge & Malling Borough Council,10/12/2022,0031018948/1,31018948, 77.98,KCS,00054200,,Stationery,Technical Sals&Overheads,D01AE000043003,310042898
http://statistics.data.gov.uk/id/local-authority/29UP,Tonbridge & Malling Borough Council,10/12/2022,0031018951/1,31018951, 170.85,British Telecommunications Plc,00012800,,Maintenance - General,Security Services Management,E09GA000040135,
http://statistics.data.gov.uk/id/local-authority/29UP,Tonbridge & Malling Borough Council,10/12/2022,0031018952/1,31018952, 500.00,Traffic Enforcement Centre,00604200,,Adjudication & Enforcement Ser,Parking Off-Street,E10HA000044230,
http://statistics.data.gov.uk/id/local-authority/29UP,Tonbridge & Malling Borough Council,10/12/2022,0031018952/2,31018952, 500.00,Traffic Enforcement Centre,00604200,,Adjudication & Enforcement Ser,Parking On-Street,E10HD000044230,
http://statistics.data.gov.uk/id/local-authority/29UP,Tonbridge & Malling Borough Council,10/12/2022,0031018953/1,31018953, 4955.18,DSSL Group Ltd,01839500,,CCTV Monitoring Station,Security Services Management,E09GA000051020,310042890
http://statistics.data.gov.uk/id/local-authority/29UP,Tonbridge & Malling Borough Council,10/12/2022,0031018954/1,31018954, 4955.18,DSSL Group Ltd,01839500,,Initial Furniture & Equipment,Cap Ren CCTV,P01BA000009906,310042883
http://statistics.data.gov.uk/id/local-authority/29UP,Tonbridge & Malling Borough Council,10/12/2022,0031018955/1,31018955, 4955.18,DSSL Group Ltd,01839500,,Initial Furniture & Equipment,Cap Ren CCTV,P01BA000009906,310042880
http://statistics.data.gov.uk/id/local-authority/29UP,Tonbridge & Malling Borough Council,10/12/2022,0031018956/1,31018956, 3817.80,HEREF Tonbridge Ltd,01518900,,Pay to Principal - Botany CP,Parking Off-Street,E10HA000044197,
http://statistics.data.gov.uk/id/local-authority/29UP,Tonbridge & Malling Borough Council,10/12/2022,0031018957/1,31018957, 26.86,KelticLimited,01000400,,Uniforms,Parking Off-Street,E10HA000042002,310042892
http://statistics.data.gov.uk/id/local-authority/29UP,Tonbridge & Malling Borough Council,10/12/2022,0031018957/10,31018957, 23.58,KelticLimited,01000400,,Uniforms,Parking Off-Street,E10HA000042002,310042892
http://statistics.data.gov.uk/id/local-authority/29UP,Tonbridge & Malling Borough Council,10/12/2022,0031018957/11,31018957, 31.96,KelticLimited,01000400,,Uniforms,Parking Off-Street,E10HA000042002,310042892
http://statistics.data.gov.uk/id/local-authority/29UP,Tonbridge & Malling Borough Council,10/12/2022,0031018957/12,31018957, 35.37,KelticLimited,01000400,,Uniforms,Parking On-Street,E10HD000042002,310042892
http://statistics.data.gov.uk/id/local-authority/29UP,Tonbridge & Malling Borough Council,10/12/2022,0031018957/13,31018957, 47.94,KelticLimited,01000400,,Uniforms,Parking On-Street,E10HD000042002,310042892
http://statistics.data.gov.uk/id/local-authority/29UP,Tonbridge & Malling Borough Council,10/12/2022,0031018957/14,31018957, 53.97,KelticLimited,01000400,,Uniforms,Parking On-Street,E10HD000042002,310042892
http://statistics.data.gov.uk/id/local-authority/29UP,Tonbridge & Malling Borough Council,10/12/2022,0031018957/15,31018957, 26.85,KelticLimited,01000400,,Uniforms,Parking On-Street,E10HD000042002,310042892
http://statistics.data.gov.uk/id/local-authority/29UP,Tonbridge & Malling Borough Council,10/12/2022,0031018957/16,31018957, 39.54,KelticLimited,01000400,,Uniforms,Parking On-Street,E10HD000042002,310042892
http://statistics.data.gov.uk/id/local-authority/29UP,Tonbridge & Malling Borough Council,10/12/2022,0031018957/17,31018957, 39.54,KelticLimited,01000400,,Uniforms,Parking On-Street,E10HD000042002,310042892
http://statistics.data.gov.uk/id/local-authority/29UP,Tonbridge & Malling Borough Council,10/12/2022,0031018957/18,31018957, 26.85,KelticLimited,01000400,,Uniforms,Parking On-Street,E10HD000042002,310042892
http://statistics.data.gov.uk/id/local-authority/29UP,Tonbridge & Malling Borough Council,10/12/2022,0031018957/19,31018957, 26.85,KelticLimited,01000400,,Uniforms,Parking On-Street,E10HD000042002,310042892
http://statistics.data.gov.uk/id/local-authority/29UP,Tonbridge & Malling Borough Council,10/12/2022,0031018957/2,31018957, 35.18,KelticLimited,01000400,,Uniforms,Parking Off-Street,E10HA000042002,310042892
http://statistics.data.gov.uk/id/local-authority/29UP,Tonbridge & Malling Borough Council,10/12/2022,0031018957/20,31018957, 41.97,KelticLimited,01000400,,Uniforms,Parking On-Street,E10HD000042002,310042892
http://statistics.data.gov.uk/id/local-authority/29UP,Tonbridge & Malling Borough Council,10/12/2022,0031018957/21,31018957, 52.77,KelticLimited,01000400,,Uniforms,Parking On-Street,E10HD000042002,310042892
http://statistics.data.gov.uk/id/local-authority/29UP,Tonbridge & Malling Borough Council,10/12/2022,0031018957/22,31018957, 40.29,KelticLimited,01000400,,Uniforms,Parking On-Street,E10HD000042002,310042892
http://statistics.data.gov.uk/id/local-authority/29UP,Tonbridge & Malling Borough Council,10/12/2022,0031018957/3,31018957, 27.98,KelticLimited,01000400,,Uniforms,Parking Off-Street,E10HA000042002,310042892
http://statistics.data.gov.uk/id/local-authority/29UP,Tonbridge & Malling Borough Council,10/12/2022,0031018957/4,31018957, 17.90,KelticLimited,01000400,,Uniforms,Parking Off-Street,E10HA000042002,310042892
http://statistics.data.gov.uk/id/local-authority/29UP,Tonbridge & Malling Borough Council,10/12/2022,0031018957/5,31018957, 17.90,KelticLimited,01000400,,Uniforms,Parking Off-Street,E10HA000042002,310042892
http://statistics.data.gov.uk/id/local-authority/29UP,Tonbridge & Malling Borough Council,10/12/2022,0031018957/6,31018957, 26.36,KelticLimited,01000400,,Uniforms,Parking Off-Street,E10HA000042002,310042892
http://statistics.data.gov.uk/id/local-authority/29UP,Tonbridge & Malling Borough Council,10/12/2022,0031018957/7,31018957, 26.36,KelticLimited,01000400,,Uniforms,Parking Off-Street,E10HA000042002,310042892
http://statistics.data.gov.uk/id/local-authority/29UP,Tonbridge & Malling Borough Council,10/12/2022,0031018957/8,31018957, 17.90,KelticLimited,01000400,,Uniforms,Parking Off-Street,E10HA000042002,310042892
http://statistics.data.gov.uk/id/local-authority/29UP,Tonbridge & Malling Borough Council,10/12/2022,0031018957/9,31018957, 35.98,KelticLimited,01000400,,Uniforms,Parking Off-Street,E10HA000042002,310042892
http://statistics.data.gov.uk/id/local-authority/29UP,Tonbridge & Malling Borough Council,10/12/2022,0032009817/1,32009817, 840.00,GRS Arboricultural Consultant,01405600,,Application & Appeals,Development Management,A01AB000044194,
http://statistics.data.gov.uk/id/local-authority/29UP,Tonbridge & Malling Borough Council,10/12/2022,0032009819/3,32009819, 2555.00,G2 Recruitment Solutions,01786000,,Temporary Staff,Planning Sals&Overheads,D01AJDJ0111300,
http://statistics.data.gov.uk/id/local-authority/29UP,Tonbridge & Malling Borough Council,10/12/2022,0032009820/3,32009820, 3278.07,G2 Recruitment Solutions,01786000,,Temporary Staff,Planning Sals&Overheads,D01AJDJ0111300,
http://statistics.data.gov.uk/id/local-authority/29UP,Tonbridge & Malling Borough Council,10/12/2022,0032009821/3,32009821, 326.25,G2 Recruitment Solutions,01786000,,Temporary Staff,Planning Sals&Overheads,D01AJDJ0111300,
http://statistics.data.gov.uk/id/local-authority/29UP,Tonbridge & Malling Borough Council,10/12/2022,0032009822/3,32009822, 1147.00,G2 Recruitment Solutions,01786000,,Temporary Staff,Planning Sals&Overheads,D01AJDJ0111300,
http://statistics.data.gov.uk/id/local-authority/29UP,Tonbridge & Malling Borough Council,10/12/2022,0032009823/3,32009823, 1612.50,Carrington West Limited,01844500,,Temporary Staff,Planning Sals&Overheads,D01AJDJ0111300,
http://statistics.data.gov.uk/id/local-authority/29UP,Tonbridge & Malling Borough Council,10/12/2022,0032009824/1,32009824, 1813.26,The Oyster Partnership,01196400,,Temporary Staff,Planning Sals&Overheads,D01AJDJ0111300,
http://statistics.data.gov.uk/id/local-authority/29UP,Tonbridge & Malling Borough Council,10/12/2022,0032009825/1,32009825, 1441.18,The Oyster Partnership,01196400,,Temporary Staff,Planning Sals&Overheads,D01AJDJ0111300,
http://statistics.data.gov.uk/id/local-authority/29UP,Tonbridge & Malling Borough Council,10/12/2022,0032009826/1,32009826, 1655.50,The Oyster Partnership,01196400,,Temporary Staff,Planning Sals&Overheads,D01AJDJ0111300,
http://statistics.data.gov.uk/id/local-authority/29UP,Tonbridge & Malling Borough Council,10/12/2022,0032009827/1,32009827, 1385.10,The Oyster Partnership,01196400,,Temporary Staff,Planning Sals&Overheads,D01AJDJ0111300,
http://statistics.data.gov.uk/id/local-authority/29UP,Tonbridge & Malling Borough Council,10/12/2022,0032009828/3,32009828, 2005.49,The Oyster Partnership,01196400,,Temporary Staff,Planning Sals&Overheads,D01AJDJ0111300,
http://statistics.data.gov.uk/id/local-authority/29UP,Tonbridge & Malling Borough Council,10/12/2022,0032009829/3,32009829, 1679.00,The Oyster Partnership,01196400,,Temporary Staff,Planning Sals&Overheads,D01AJDJ0111300,
http://statistics.data.gov.uk/id/local-authority/29UP,Tonbridge & Malling Borough Council,10/12/2022,0032009830/3,32009830, 1868.35,The Oyster Partnership,01196400,,Temporary Staff,Planning Sals&Overheads,D01AJDJ0111300,
http://statistics.data.gov.uk/id/local-authority/29UP,Tonbridge & Malling Borough Council,10/12/2022,0032009831/3,32009831, 1652.58,The Oyster Partnership,01196400,,Temporary Staff,Planning Sals&Overheads,D01AJDJ0111300,
http://statistics.data.gov.uk/id/local-authority/29UP,Tonbridge & Malling Borough Council,10/12/2022,0032009832/1,32009832, 4200.00,Aylesford Parish Council,00007300,,Payments,S106 - Commuted Sums,M04AD000001001,
http://statistics.data.gov.uk/id/local-authority/29UP,Tonbridge & Malling Borough Council,10/12/2022,0032009833/1,32009833, 2480.00,East Malling & Larkfield Parish Council,00030200,,Payments,S106 - Commuted Sums,M04AD000001001,
http://statistics.data.gov.uk/id/local-authority/29UP,Tonbridge & Malling Borough Council,10/12/2022,0041034789/3,41034789, 20000.00,Policy in Practice Ltd,01787200,,Contribution from Other Bodies,Housing Benefits,C05CL000095001,
http://statistics.data.gov.uk/id/local-authority/29UP,Tonbridge & Malling Borough Council,10/12/2022,0041034790/1,41034790, 8000.00,NEC Software Solutions UK Ltd,01073900,202159745,Software Enhancement,Local Revenue & NNDR Collect,D41QA000044063,410032233
http://statistics.data.gov.uk/id/local-authority/29UP,Tonbridge & Malling Borough Council,10/12/2022,0041034791/3,41034791, 89.82,Adelante Software Limited,01393800,812115871,Credit Card Commission,Banking Arrangements,D43QK000044082,
http://statistics.data.gov.uk/id/local-authority/29UP,Tonbridge & Malling Borough Council,10/12/2022,0041034794/3,41034794, 278.30,Morgan Hunt UK Ltd,01086900,,Temporary Staff,Finance Sals&Overheads,D01AFDF1111300,
http://statistics.data.gov.uk/id/local-authority/29UP,Tonbridge & Malling Borough Council,10/12/2022,0041034795/3,41034795, 945.00,Morgan Hunt UK Ltd,01086900,,Temporary Staff,Finance Sals&Overheads,D01AFDF1111300,
http://statistics.data.gov.uk/id/local-authority/29UP,Tonbridge & Malling Borough Council,10/12/2022,0041034796/3,41034796, 556.60,Morgan Hunt UK Ltd,01086900,,Temporary Staff,Finance Sals&Overheads,D01AFDF1111300,
http://statistics.data.gov.uk/id/local-authority/29UP,Tonbridge & Malling Borough Council,10/12/2022,0041034797/3,41034797, 643.13,Morgan Hunt UK Ltd,01086900,,Temporary Staff,Finance Sals&Overheads,D01AFDF1111300,
http://statistics.data.gov.uk/id/local-authority/29UP,Tonbridge & Malling Borough Council,10/12/2022,0041034798/3,41034798, 542.69,Morgan Hunt UK Ltd,01086900,,Temporary Staff,Finance Sals&Overheads,D01AFDF1111300,
http://statistics.data.gov.uk/id/local-authority/29UP,Tonbridge & Malling Borough Council,10/12/2022,0041034799/3,41034799, 971.25,Morgan Hunt UK Ltd,01086900,,Temporary Staff,Finance Sals&Overheads,D01AFDF1111300,
http://statistics.data.gov.uk/id/local-authority/29UP,Tonbridge & Malling Borough Council,10/12/2022,0041034805/2,41034805, 1760.76,Rundle & Co Ltd,00087200,,Bailiffs Commission,Local Revenue & NNDR Collect,D41QA000044075,
http://statistics.data.gov.uk/id/local-authority/29UP,Tonbridge & Malling Borough Council,10/12/2022,0041034806/1,41034806, 404.82,Rundle & Co Ltd,00087200,,Bailiffs Commission,Local Revenue & NNDR Collect,D41QA000044075,
http://statistics.data.gov.uk/id/local-authority/29UP,Tonbridge & Malling Borough Council,10/12/2022,0041034807/1,41034807, 734.82,Rundle & Co Ltd,00087200,,Bailiffs Commission,Local Revenue & NNDR Collect,D41QA000044075,
http://statistics.data.gov.uk/id/local-authority/29UP,Tonbridge & Malling Borough Council,10/12/2022,0041034808/1,41034808, 16.61,Rundle & Co Ltd,00087200,,Bailiffs Commission,Local Revenue & NNDR Collect,D41QA000044075,
http://statistics.data.gov.uk/id/local-authority/29UP,Tonbridge & Malling Borough Council,10/12/2022,0041034809/1,41034809, 1041.67,Rundle & Co Ltd,00087200,,Bailiffs Commission,Local Revenue & NNDR Collect,D41QA000044075,
http://statistics.data.gov.uk/id/local-authority/29UP,Tonbridge & Malling Borough Council,10/12/2022,0041034810/1,41034810, 872.57,Rundle & Co Ltd,00087200,,Bailiffs Commission,Local Revenue & NNDR Collect,D41QA000044075,
http://statistics.data.gov.uk/id/local-authority/29UP,Tonbridge & Malling Borough Council,10/12/2022,0041034811/1,41034811, 1935.49,Rundle & Co Ltd,00087200,,Bailiffs Commission,Local Revenue & NNDR Collect,D41QA000044075,
http://statistics.data.gov.uk/id/local-authority/29UP,Tonbridge & Malling Borough Council,10/12/2022,0041034812/1,41034812, 4102.22,Rundle & Co Ltd,00087200,,Bailiffs Commission,Local Revenue & NNDR Collect,D41QA000044075,
http://statistics.data.gov.uk/id/local-authority/29UP,Tonbridge & Malling Borough Council,10/12/2022,0041034813/1,41034813, 5000.00,PPE Supplies Direct,01863900,,Charitable / Voluntary Organis,Grants & Payments to Vol Orgn,D37PACK2247005,
http://statistics.data.gov.uk/id/local-authority/29UP,Tonbridge & Malling Borough Council,10/12/2022,0041034815/1,41034815, 15.52,HSBC Bank Plc,01740800,,Bank Charges,Banking Arrangements,D43QK000044222,
http://statistics.data.gov.uk/id/local-authority/29UP,Tonbridge & Malling Borough Council,10/12/2022,0051008742/1,51008742, 48.00,Ferret Information Systems,01023100,,Ext Fees/Prof & Tech,Training,D10DCDV0913561,510010592
http://statistics.data.gov.uk/id/local-authority/29UP,Tonbridge & Malling Borough Council,10/12/2022,0051008743/1,51008743, 36.00,Cantium Business Solutions Ltd,01698600,,Criminal Records Bureau Checks,Recruitment Expenses,D10DA000013180,510010593
http://statistics.data.gov.uk/id/local-authority/29UP,Tonbridge & Malling Borough Council,10/12/2022,0051008743/2,51008743, 15.00,Cantium Business Solutions Ltd,01698600,,Criminal Records Bureau Checks,Recruitment Expenses,D10DA000013180,510010593
http://statistics.data.gov.uk/id/local-authority/29UP,Tonbridge & Malling Borough Council,10/12/2022,0051008744/1,51008744, 3942.00,Haymarket Media Group Limited,01197800,,Recruitment Advertising,Recruitment Expenses,D10DADJ0113110,510010594
http://statistics.data.gov.uk/id/local-authority/29UP,Tonbridge & Malling Borough Council,10/14/2022,0041034832/1,41034832, 59.95,Allpay Limited,01816500,,Giro / Swipe Card Charges,Local Revenue & NNDR Collect,D41QA000044083,
http://statistics.data.gov.uk/id/local-authority/29UP,Tonbridge & Malling Borough Council,10/17/2022,0041034835/1,41034835, 15.00,BNP Paribas,01360500,,Bank Charges,Banking Arrangements,D43QK000044222,
http://statistics.data.gov.uk/id/local-authority/29UP,Tonbridge & Malling Borough Council,10/18/2022,0041034834/10,41034834, 6.67,National Westminster Bank Plc,00894500,,Delivery Expenses,Information Technology,D27KD000044069,
http://statistics.data.gov.uk/id/local-authority/29UP,Tonbridge & Malling Borough Council,10/18/2022,0041034834/11,41034834, 30.71,National Westminster Bank Plc,00894500,,Information & Publicity,Information & Publicity,D32MJ000044076,
http://statistics.data.gov.uk/id/local-authority/29UP,Tonbridge & Malling Borough Council,10/18/2022,0041034834/12,41034834, 281.50,National Westminster Bank Plc,00894500,,Legal Fees,Local Revenue & NNDR Collect,D41QA000044002,
http://statistics.data.gov.uk/id/local-authority/29UP,Tonbridge & Malling Borough Council,10/18/2022,0041034834/13,41034834, 37.08,National Westminster Bank Plc,00894500,,Other Expenses,Items Funded from Reserves,D51LYDY0648010,
http://statistics.data.gov.uk/id/local-authority/29UP,Tonbridge & Malling Borough Council,10/18/2022,0041034834/14,41034834, 4.95,National Westminster Bank Plc,00894500,,Other Expenses,Items Funded from Reserves,D51LYDY0648010,
http://statistics.data.gov.uk/id/local-authority/29UP,Tonbridge & Malling Borough Council,10/18/2022,0041034834/15,41034834, 43.70,National Westminster Bank Plc,00894500,,Health General,Food & Safety - General,H35SW000044049,
http://statistics.data.gov.uk/id/local-authority/29UP,Tonbridge & Malling Borough Council,10/18/2022,0041034834/16,41034834, 64.08,National Westminster Bank Plc,00894500,,Sales,TIC Stock Account,K18AX000002002,
http://statistics.data.gov.uk/id/local-authority/29UP,Tonbridge & Malling Borough Council,10/18/2022,0041034834/17,41034834, 21.57,National Westminster Bank Plc,00894500,,Sales,TIC Stock Account,K18AX000002002,
http://statistics.data.gov.uk/id/local-authority/29UP,Tonbridge & Malling Borough Council,10/18/2022,0041034834/18,41034834, 40.40,National Westminster Bank Plc,00894500,,Sales,TIC Stock Account,K18AX000002002,
http://statistics.data.gov.uk/id/local-authority/29UP,Tonbridge & Malling Borough Council,10/18/2022,0041034834/19,41034834, 16.44,National Westminster Bank Plc,00894500,,Sales,TIC Stock Account,K18AX000002002,
http://statistics.data.gov.uk/id/local-authority/29UP,Tonbridge & Malling Borough Council,10/18/2022,0041034834/20,41034834, 50.00,National Westminster Bank Plc,00894500,,BRREP Response - General,Land Review,M15MAP50001997,
http://statistics.data.gov.uk/id/local-authority/29UP,Tonbridge & Malling Borough Council,10/18/2022,0041034834/4,41034834, 71.43,National Westminster Bank Plc,00894500,,Electricity,Homelessness,C01AATNHS21002,
http://statistics.data.gov.uk/id/local-authority/29UP,Tonbridge & Malling Borough Council,10/18/2022,0041034834/5,41034834, 460.00,National Westminster Bank Plc,00894500,,Ext Fees/Prof & Tech,Training,D10DCDB0013561,
http://statistics.data.gov.uk/id/local-authority/29UP,Tonbridge & Malling Borough Council,10/18/2022,0041034834/9,41034834, 18.04,National Westminster Bank Plc,00894500,,Software Hire & Support,Information Technology,D27KD000044059,
http://statistics.data.gov.uk/id/local-authority/29UP,Tonbridge & Malling Borough Council,10/18/2022,0041034838/1,41034838, 387.68,Allpay Limited,01816500,,Giro / Swipe Card Charges,Local Revenue & NNDR Collect,D41QA000044083,
http://statistics.data.gov.uk/id/local-authority/29UP,Tonbridge & Malling Borough Council,10/18/2022,0041034839/1,41034839, 267.55,National Westminster Bank Plc,00069400,,Bank Charges,Banking Arrangements,D43QK000044222,
http://statistics.data.gov.uk/id/local-authority/29UP,Tonbridge & Malling Borough Council,10/19/2022,0011045023/1,11045023, 275.00,SWEET SENSTATIONS EATS & TREATS LTD,01749200,,Economic Development & Regen,Eco Dev & Reg Gen Bus Support,D52TD000047027,110069772
http://statistics.data.gov.uk/id/local-authority/29UP,Tonbridge & Malling Borough Council,10/19/2022,0011045024/1,11045024, 8878.00,BML Building Services Ltd,01505000,,BRREP General Maintenance,Larkfield Leisure Centre,M15HDP10001900,110069824
http://statistics.data.gov.uk/id/local-authority/29UP,Tonbridge & Malling Borough Council,10/19/2022,0011045025/1,11045025, 1123.00,Southern Lightning Engineers Ltd,00094000,,BRREP Servicing-Lightning Prot,Tonbridge Swimming Pool,M15HBP20001942,110069810
http://statistics.data.gov.uk/id/local-authority/29UP,Tonbridge & Malling Borough Council,10/19/2022,0011045026/1,11045026, 287.00,BML Building Services Ltd,01505000,,BRREP Resp - Vandal / Break-In,Tonbridge Castle / CAB,M15KFP50001998,110069822
http://statistics.data.gov.uk/id/local-authority/29UP,Tonbridge & Malling Borough Council,10/19/2022,0011045027/1,11045027, 769.00,Loxton Installations Ltd,01278800,,BRREP Serv Internal Lighting,Tonbridge Castle / CAB,M15KFP20001957,110069789
http://statistics.data.gov.uk/id/local-authority/29UP,Tonbridge & Malling Borough Council,10/19/2022,0011045028/1,11045028, 743.00,Loxton Installations Ltd,01278800,,BRREP Servicing-CarParkLightg,Larkfield Leisure Centre,M15HDP20001944,110069723
http://statistics.data.gov.uk/id/local-authority/29UP,Tonbridge & Malling Borough Council,10/19/2022,0011045029/1,11045029, 3817.00,Loxton Installations Ltd,01278800,,BRREP Servicing-CarParkLightg,Larkfield Leisure Centre,M15HDP20001944,110069574
http://statistics.data.gov.uk/id/local-authority/29UP,Tonbridge & Malling Borough Council,10/19/2022,0011045030/1,11045030, 539.00,Loxton Installations Ltd,01278800,,BRREP Serv Internal Lighting,Larkfield Leisure Centre,M15HDP20001957,110069495
http://statistics.data.gov.uk/id/local-authority/29UP,Tonbridge & Malling Borough Council,10/19/2022,0011045031/1,11045031, 190.00,Loxton Installations Ltd,01278800,,BRREP IEE Testing,Larkfield Leisure Centre,M15HDP30001991,110069462
http://statistics.data.gov.uk/id/local-authority/29UP,Tonbridge & Malling Borough Council,10/19/2022,0011045032/1,11045032, 433.50,Coloursped Services Ltd,01806600,,Maintenance - General,Printing,D22GA000040135,110069705
http://statistics.data.gov.uk/id/local-authority/29UP,Tonbridge & Malling Borough Council,10/19/2022,0011045033/1,11045033, 78.00,Southern Care Maintenance,01282600,,BRREP Servicing - Diasbled Acc,Tonbridge Castle / CAB,M15KFP20001981,110069608
http://statistics.data.gov.uk/id/local-authority/29UP,Tonbridge & Malling Borough Council,10/19/2022,0011045034/1,11045034, 754.00,Hadene Engineering Ltd,00041900,,BRREP Servicing - boilers,Larkfield Leisure Centre,M15HDP20001929,110069734
http://statistics.data.gov.uk/id/local-authority/29UP,Tonbridge & Malling Borough Council,10/19/2022,0011045035/1,11045035, 78.50,Triple S Lift Services,01344900,,BRREP Servicing - lifts,Gibson Building East,M15KGP20001930,110069752
http://statistics.data.gov.uk/id/local-authority/29UP,Tonbridge & Malling Borough Council,10/19/2022,0011045036/1,11045036, 110.00,Triple S Lift Services,01344900,,BRREP Servicing - lifts,Angel Centre,M15HAP20001930,110069286
http://statistics.data.gov.uk/id/local-authority/29UP,Tonbridge & Malling Borough Council,10/19/2022,0011045037/1,11045037, 110.00,Triple S Lift Services,01344900,,BRREP Servicing - lifts,Angel Centre,M15HAP20001930,110069754
http://statistics.data.gov.uk/id/local-authority/29UP,Tonbridge & Malling Borough Council,10/19/2022,0011045038/1,11045038, 600.00,SAS Energy,01856200,,BRREP General Maintenance,Larkfield Leisure Centre,M15HDP10001900,110069729
http://statistics.data.gov.uk/id/local-authority/29UP,Tonbridge & Malling Borough Council,10/19/2022,0011045039/1,11045039, 107.10,KM Media Group Ltd,00053900,,Advertising General,Licences - Fee Paying,H27SHZ99944216,110069828
http://statistics.data.gov.uk/id/local-authority/29UP,Tonbridge & Malling Borough Council,10/19/2022,0011045040/1,11045040, 2000.00,Protection against stalking,01715800,,Community Safety Initiatives,Community Safety,D30MA000048134,
http://statistics.data.gov.uk/id/local-authority/29UP,Tonbridge & Malling Borough Council,10/19/2022,0011045042/3,11045042, 876.80,Coloursped Services Ltd,01806600,,Maintenance - General,Printing,D22GA000040135,
http://statistics.data.gov.uk/id/local-authority/29UP,Tonbridge & Malling Borough Council,10/19/2022,0011045043/1,11045043, 50.00,Mrs D M Crook,01866700,,Hospitality,Mayoral & Other Member Support,D29LX000048003,
http://statistics.data.gov.uk/id/local-authority/29UP,Tonbridge & Malling Borough Council,10/19/2022,0011045044/3,11045044, 158.59,Premier Paper Group,01421800,,Purchases - Paper,Printing,D22GA000040102,
http://statistics.data.gov.uk/id/local-authority/29UP,Tonbridge & Malling Borough Council,10/19/2022,0011045045/3,11045045, 75.15,Triple S Lift Services,01344900,,BRREP Servicing - lifts,Angel Centre,M15HAP20001930,
http://statistics.data.gov.uk/id/local-authority/29UP,Tonbridge & Malling Borough Council,10/19/2022,0011045046/3,11045046, 150.00,Triple S Lift Services,01344900,,BRREP Servicing - lifts,Angel Centre,M15HAP20001930,
http://statistics.data.gov.uk/id/local-authority/29UP,Tonbridge & Malling Borough Council,10/19/2022,0011045047/3,11045047, 1217.80,Sellick Partnership Group Limited,01336800,,Temporary Staff,Legal Sals&Overheads,D01ARDR0011300,
http://statistics.data.gov.uk/id/local-authority/29UP,Tonbridge & Malling Borough Council,10/19/2022,0011045048/3,11045048, 852.46,Sellick Partnership Group Limited,01336800,,Temporary Staff,Legal Sals&Overheads,D01ARDR0011300,
http://statistics.data.gov.uk/id/local-authority/29UP,Tonbridge & Malling Borough Council,10/19/2022,0011045049/3,11045049, 1217.80,Sellick Partnership Group Limited,01336800,,Temporary Staff,Legal Sals&Overheads,D01ARDR0011300,
http://statistics.data.gov.uk/id/local-authority/29UP,Tonbridge & Malling Borough Council,10/19/2022,0011045050/3,11045050, 99.00,Association Democratic Services Officers,01472800,,Professional Membership,Admin & Prop Sals&Overheads,D01AADA0347001,
http://statistics.data.gov.uk/id/local-authority/29UP,Tonbridge & Malling Borough Council,10/19/2022,0011045051/1,11045051, 1500.00,Kent County Council,00322500,,Safeguarding,Community Development,D30MB000047018,
http://statistics.data.gov.uk/id/local-authority/29UP,Tonbridge & Malling Borough Council,10/19/2022,0011045052/3,11045052, 793.67,V.E.T.S. (International) L,01722900,,Professional Fees,Licences - Fee Paying,H27SH000044001,
http://statistics.data.gov.uk/id/local-authority/29UP,Tonbridge & Malling Borough Council,10/19/2022,0011045053/3,11045053, 1217.80,Sellick Partnership Group Limited,01336800,,Temporary Staff,Legal Sals&Overheads,D01ARDR0011300,
http://statistics.data.gov.uk/id/local-authority/29UP,Tonbridge & Malling Borough Council,10/19/2022,0011045054/1,11045054, 785.00,Triple S Lift Services,01344900,,BRREP Servicing - lifts,Angel Centre,M15HAP20001930,110069758
http://statistics.data.gov.uk/id/local-authority/29UP,Tonbridge & Malling Borough Council,10/19/2022,0012008513/1,12008513, 1773.08,Dataquest Ltd - CC Engineering Limited,01233100,438498209,Maintenance - Ancillary Equip,Information Technology,D27KD000040137,410032271
http://statistics.data.gov.uk/id/local-authority/29UP,Tonbridge & Malling Borough Council,10/19/2022,0012008514/1,12008514, 6.21,Amazon EU SARL,01738400,,Purchases,Information Technology,D27KD000040101,410032272
http://statistics.data.gov.uk/id/local-authority/29UP,Tonbridge & Malling Borough Council,10/19/2022,0012008514/2,12008514, 4.57,Amazon EU SARL,01738400,,Delivery Expenses,Information Technology,D27KD000044069,410032272
http://statistics.data.gov.uk/id/local-authority/29UP,Tonbridge & Malling Borough Council,10/19/2022,0012008515/3,12008515, 816.75,Canon (UK) Limited,00298700,,Software Hire & Support,Information Technology,D27KD000044059,
http://statistics.data.gov.uk/id/local-authority/29UP,Tonbridge & Malling Borough Council,10/19/2022,0012008516/10,12008516, 3.10,O2 UK Ltd,01268000,,Mobile Telephones,Technical Sals&Overheads,D01AEDE0045013,
http://statistics.data.gov.uk/id/local-authority/29UP,Tonbridge & Malling Borough Council,10/19/2022,0012008516/11,12008516, 9.01,O2 UK Ltd,01268000,,Mobile Telephones,Technical Sals&Overheads,D01AEDE0145013,
http://statistics.data.gov.uk/id/local-authority/29UP,Tonbridge & Malling Borough Council,10/19/2022,0012008516/12,12008516, 9.00,O2 UK Ltd,01268000,,Mobile Telephones,Technical Sals&Overheads,D01AEDE0245013,
http://statistics.data.gov.uk/id/local-authority/29UP,Tonbridge & Malling Borough Council,10/19/2022,0012008516/13,12008516, 43.48,O2 UK Ltd,01268000,,Mobile Telephones,Technical Sals&Overheads,D01AEDE0445013,
http://statistics.data.gov.uk/id/local-authority/29UP,Tonbridge & Malling Borough Council,10/19/2022,0012008516/14,12008516, 3.00,O2 UK Ltd,01268000,,Mobile Telephones,Technical Sals&Overheads,D01AEDE0545013,
http://statistics.data.gov.uk/id/local-authority/29UP,Tonbridge & Malling Borough Council,10/19/2022,0012008516/15,12008516, 12.00,O2 UK Ltd,01268000,,Mobile Telephones,Finance Sals&Overheads,D01AFDF0045013,
http://statistics.data.gov.uk/id/local-authority/29UP,Tonbridge & Malling Borough Council,10/19/2022,0012008516/16,12008516, 6.00,O2 UK Ltd,01268000,,Mobile Telephones,Finance Sals&Overheads,D01AFDF0945013,
http://statistics.data.gov.uk/id/local-authority/29UP,Tonbridge & Malling Borough Council,10/19/2022,0012008516/17,12008516, 12.00,O2 UK Ltd,01268000,,Mobile Telephones,St Scene & Leis Sals&Overheads,D01AGDG0045013,
http://statistics.data.gov.uk/id/local-authority/29UP,Tonbridge & Malling Borough Council,10/19/2022,0012008516/18,12008516, 12.20,O2 UK Ltd,01268000,,Mobile Telephones,St Scene & Leis Sals&Overheads,D01AGDG0145013,
http://statistics.data.gov.uk/id/local-authority/29UP,Tonbridge & Malling Borough Council,10/19/2022,0012008516/19,12008516, 9.00,O2 UK Ltd,01268000,,Mobile Telephones,St Scene & Leis Sals&Overheads,D01AGDG0445013,
http://statistics.data.gov.uk/id/local-authority/29UP,Tonbridge & Malling Borough Council,10/19/2022,0012008516/20,12008516, 36.00,O2 UK Ltd,01268000,,Mobile Telephones,St Scene & Leis Sals&Overheads,D01AGDG2045013,
http://statistics.data.gov.uk/id/local-authority/29UP,Tonbridge & Malling Borough Council,10/19/2022,0012008516/21,12008516, 9.00,O2 UK Ltd,01268000,,Mobile Telephones,Planning Sals&Overheads,D01AJDJ0045013,
http://statistics.data.gov.uk/id/local-authority/29UP,Tonbridge & Malling Borough Council,10/19/2022,0012008516/22,12008516, 12.20,O2 UK Ltd,01268000,,Mobile Telephones,Planning Sals&Overheads,D01AJDJ0245013,
http://statistics.data.gov.uk/id/local-authority/29UP,Tonbridge & Malling Borough Council,10/19/2022,0012008516/23,12008516, 6.00,O2 UK Ltd,01268000,,Mobile Telephones,Legal Sals&Overheads,D01ARDR0045013,
http://statistics.data.gov.uk/id/local-authority/29UP,Tonbridge & Malling Borough Council,10/19/2022,0012008516/24,12008516, 12.13,O2 UK Ltd,01268000,,Mobile Telephones,Legal Sals&Overheads,D01ARDR0445013,
http://statistics.data.gov.uk/id/local-authority/29UP,Tonbridge & Malling Borough Council,10/19/2022,0012008516/25,12008516, 3.00,O2 UK Ltd,01268000,,Mobile Telephones,Legal Sals&Overheads,D01ARDR0745013,
http://statistics.data.gov.uk/id/local-authority/29UP,Tonbridge & Malling Borough Council,10/19/2022,0012008516/26,12008516, 3.00,O2 UK Ltd,01268000,,Mobile Telephones,Env Hlth & Hsg Sals&Overheads,D01AVDV0045013,
http://statistics.data.gov.uk/id/local-authority/29UP,Tonbridge & Malling Borough Council,10/19/2022,0012008516/27,12008516, 9.00,O2 UK Ltd,01268000,,Mobile Telephones,Env Hlth & Hsg Sals&Overheads,D01AVDV0145013,
http://statistics.data.gov.uk/id/local-authority/29UP,Tonbridge & Malling Borough Council,10/19/2022,0012008516/28,12008516, 6.00,O2 UK Ltd,01268000,,Mobile Telephones,Env Hlth & Hsg Sals&Overheads,D01AVDV0345013,
http://statistics.data.gov.uk/id/local-authority/29UP,Tonbridge & Malling Borough Council,10/19/2022,0012008516/29,12008516, 3.00,O2 UK Ltd,01268000,,Mobile Telephones,Env Hlth & Hsg Sals&Overheads,D01AVDV0745013,
http://statistics.data.gov.uk/id/local-authority/29UP,Tonbridge & Malling Borough Council,10/19/2022,0012008516/3,12008516, 3.00,O2 UK Ltd,01268000,,Telephones - General,Open Spaces & Amenity Areas,B22LE000045010,
http://statistics.data.gov.uk/id/local-authority/29UP,Tonbridge & Malling Borough Council,10/19/2022,0012008516/30,12008516, 6.00,O2 UK Ltd,01268000,,Mobile Telephones,Env Hlth & Hsg Sals&Overheads,D01AVDV0945013,
http://statistics.data.gov.uk/id/local-authority/29UP,Tonbridge & Malling Borough Council,10/19/2022,0012008516/31,12008516, 9.60,O2 UK Ltd,01268000,,Mobile Telephones,Customer Services,D23CS000045013,
http://statistics.data.gov.uk/id/local-authority/29UP,Tonbridge & Malling Borough Council,10/19/2022,0012008516/32,12008516, 3.08,O2 UK Ltd,01268000,,Mobile Telephones,Tonbridge Gateway,D23TG000045013,
http://statistics.data.gov.uk/id/local-authority/29UP,Tonbridge & Malling Borough Council,10/19/2022,0012008516/33,12008516, 627.00,O2 UK Ltd,01268000,,Leased Lines & Modems,Information Technology,D27KD000045011,
http://statistics.data.gov.uk/id/local-authority/29UP,Tonbridge & Malling Borough Council,10/19/2022,0012008516/34,12008516, 3.00,O2 UK Ltd,01268000,,Mobile Telephones,Mayoral & Other Member Support,D29LX000045013,
http://statistics.data.gov.uk/id/local-authority/29UP,Tonbridge & Malling Borough Council,10/19/2022,0012008516/35,12008516, 3.00,O2 UK Ltd,01268000,,Emergency Out of Hours Recharg,Refuse Collection,H20SA000045030,
http://statistics.data.gov.uk/id/local-authority/29UP,Tonbridge & Malling Borough Council,10/19/2022,0012008516/36,12008516, 3.00,O2 UK Ltd,01268000,,Emergency Out of Hours Recharg,Street Scene,H23SD000045030,
http://statistics.data.gov.uk/id/local-authority/29UP,Tonbridge & Malling Borough Council,10/19/2022,0012008516/4,12008516, 6.00,O2 UK Ltd,01268000,,Mobile Telephones,Admin & Prop Sals&Overheads,D01AADA0045013,
http://statistics.data.gov.uk/id/local-authority/29UP,Tonbridge & Malling Borough Council,10/19/2022,0012008516/5,12008516, 3.00,O2 UK Ltd,01268000,,Mobile Telephones,Admin & Prop Sals&Overheads,D01AADA1045013,
http://statistics.data.gov.uk/id/local-authority/29UP,Tonbridge & Malling Borough Council,10/19/2022,0012008516/6,12008516, 9.00,O2 UK Ltd,01268000,,Mobile Telephones,Admin & Prop Sals&Overheads,D01AADA1245013,
http://statistics.data.gov.uk/id/local-authority/29UP,Tonbridge & Malling Borough Council,10/19/2022,0012008516/7,12008516, 3.00,O2 UK Ltd,01268000,,Mobile Telephones,Chief Exec Sals&Overheads,D01ACDC0045013,
http://statistics.data.gov.uk/id/local-authority/29UP,Tonbridge & Malling Borough Council,10/19/2022,0012008516/8,12008516, 3.00,O2 UK Ltd,01268000,,Mobile Telephones,Chief Exec Sals&Overheads,D01ACDC0145013,
http://statistics.data.gov.uk/id/local-authority/29UP,Tonbridge & Malling Borough Council,10/19/2022,0012008516/9,12008516, 4.47,O2 UK Ltd,01268000,,Mobile Telephones,Chief Exec Sals&Overheads,D01ACDC0245013,
http://statistics.data.gov.uk/id/local-authority/29UP,Tonbridge & Malling Borough Council,10/19/2022,0012008517/1,12008517, 65.80,CCS Media Ltd,00018000,,Purchases,Information Technology,D27KD000040101,410032270
http://statistics.data.gov.uk/id/local-authority/29UP,Tonbridge & Malling Borough Council,10/19/2022,0012008517/2,12008517, 5.00,CCS Media Ltd,00018000,,Delivery Expenses,Information Technology,D27KD000044069,410032270
http://statistics.data.gov.uk/id/local-authority/29UP,Tonbridge & Malling Borough Council,10/19/2022,0012008518/1,12008518, 80.97,CCS Media Ltd,00018000,,Purchases,Information Technology,D27KD000040101,410032273
http://statistics.data.gov.uk/id/local-authority/29UP,Tonbridge & Malling Borough Council,10/19/2022,0012008518/2,12008518, 2.00,CCS Media Ltd,00018000,,Delivery Expenses,Information Technology,D27KD000044069,410032273
http://statistics.data.gov.uk/id/local-authority/29UP,Tonbridge & Malling Borough Council,10/19/2022,0021038203/1,21038203, 685.66,Atlas Facilities Managment Limited ,01075900,,Gates / Security,Patrolling,B22LF000044017,210056716
http://statistics.data.gov.uk/id/local-authority/29UP,Tonbridge & Malling Borough Council,10/19/2022,0021038204/3,21038204, 75.83,B&Q/Screwfix Direct(TradeUKAccount),00141300,,Purchases,Open Spaces & Amenity Areas,B22LE000040101,
http://statistics.data.gov.uk/id/local-authority/29UP,Tonbridge & Malling Borough Council,10/19/2022,0021038207/1,21038207, 11.50,South East Water Ltd,01330300,,Maintenance of Grounds,Haysden Country Park,B22LC000020402,210056963
http://statistics.data.gov.uk/id/local-authority/29UP,Tonbridge & Malling Borough Council,10/19/2022,0021038208/3,21038208, 7.90,B&Q/Screwfix Direct(TradeUKAccount),00141300,,Purchases,Security Services Management,E09GA000040101,
http://statistics.data.gov.uk/id/local-authority/29UP,Tonbridge & Malling Borough Council,10/19/2022,0021038210/1,21038210, 88.91,KCC - L.A.S.E.R Commercial Services ,00184300,,Electricity,Open Spaces & Amenity Areas,B22LE000021002,
http://statistics.data.gov.uk/id/local-authority/29UP,Tonbridge & Malling Borough Council,10/19/2022,0022027103/3,22027103, 245.00,Countrystyle Group,00835900,781981681,Collection of Card,Dry Recycling,H34SR000054008,
http://statistics.data.gov.uk/id/local-authority/29UP,Tonbridge & Malling Borough Council,10/19/2022,0022027104/1,22027104, 15309.00,Craemer UK LTD,01616400,,Initial Furniture & Equipment,Green Waste Bin Growth/Replace,P02BC000009906,220003265
http://statistics.data.gov.uk/id/local-authority/29UP,Tonbridge & Malling Borough Council,10/19/2022,0022027105/1,22027105, 23598.50,Social & Community Care,01768400,,Temporary Accommodation,Homelessness,C01AA000044051,
http://statistics.data.gov.uk/id/local-authority/29UP,Tonbridge & Malling Borough Council,10/19/2022,0022027106/3,22027106, 3566.85,Ward Security LTD,01490000,,Dog Warden,Street Scene,H23SD000044100,
http://statistics.data.gov.uk/id/local-authority/29UP,Tonbridge & Malling Borough Council,10/19/2022,0022027107/1,22027107, 230.00,Keith Rawlings,01358700,,Temporary Accommodation,Homelessness,C01AA000044051,
http://statistics.data.gov.uk/id/local-authority/29UP,Tonbridge & Malling Borough Council,10/19/2022,0022027108/1,22027108, 895.00,Enviro Technology Services PLC,01461300,,Air Quality Monitoring,Environmental Protection,H32SN000054016,220003260
http://statistics.data.gov.uk/id/local-authority/29UP,Tonbridge & Malling Borough Council,10/19/2022,0022027109/1,22027109, 1447.28,Town & Country Housing Group,01385400,,Countywide DFG Project,Private Sector Housing Renewal,C03BD000044031,
http://statistics.data.gov.uk/id/local-authority/29UP,Tonbridge & Malling Borough Council,10/19/2022,0022027110/1,22027110, 510.00,Town & Country Housing Group,01385400,,Other Expenses,Housing Assistance,P03AD000009908,
http://statistics.data.gov.uk/id/local-authority/29UP,Tonbridge & Malling Borough Council,10/19/2022,0022027111/1,22027111, 10317.11,Lifestyle (KENT) LTD,01348800,,Other Expenses,Disabled Facilities Grant Mand,P03AC000009908,
http://statistics.data.gov.uk/id/local-authority/29UP,Tonbridge & Malling Borough Council,10/19/2022,0022027112/1,22027112, 5464.41,Daytrad,01425400,,Other Expenses,Disabled Facilities Grant Mand,P03AC000009908,
http://statistics.data.gov.uk/id/local-authority/29UP,Tonbridge & Malling Borough Council,10/19/2022,0022027113/1,22027113, 786.88,Town & Country Housing Group,01385400,,Other Expenses,Disabled Facilities Grant Mand,P03AC000009908,
http://statistics.data.gov.uk/id/local-authority/29UP,Tonbridge & Malling Borough Council,10/19/2022,0022027114/1,22027114, 750.00,Counterweight LTD,01506600,,Healthy Living Initiatives,Public Health - Healthy Living,H40SYVH0048145,220003268
http://statistics.data.gov.uk/id/local-authority/29UP,Tonbridge & Malling Borough Council,10/19/2022,0022027115/1,22027115, 5423.00,Under My Roof Ltd,01806700,,Temporary Accommodation,Homelessness,C01AA000044051,
http://statistics.data.gov.uk/id/local-authority/29UP,Tonbridge & Malling Borough Council,10/19/2022,0022027116/1,22027116, 2570.00,Lifestyle (KENT) LTD,01348800,,Other Expenses,Disabled Facilities Grant Mand,P03AC000009908,
http://statistics.data.gov.uk/id/local-authority/29UP,Tonbridge & Malling Borough Council,10/19/2022,0022027117/1,22027117, 1542.92,Town & Country Housing Group,01385400,,Other Expenses,Disabled Facilities Grant Mand,P03AC000009908,
http://statistics.data.gov.uk/id/local-authority/29UP,Tonbridge & Malling Borough Council,10/19/2022,0022027119/1,22027119, 1556.50,Lucy and Martin Recycling LTD,01694200,,Bring Sites Mixed Recycling,Dry Recycling,H34SR000054026,
http://statistics.data.gov.uk/id/local-authority/29UP,Tonbridge & Malling Borough Council,10/19/2022,0022027121/1,22027121, 1032.85,KCC - L.A.S.E.R Commercial Services ,00184300,,Electricity,Public Conveniences,H22SCH00921002,
http://statistics.data.gov.uk/id/local-authority/29UP,Tonbridge & Malling Borough Council,10/19/2022,0031018958/1,31018958, 360.00,DSSL Group Ltd,01839500,,Maintenance - General,Security Services Management,E09GA000040135,310042896
http://statistics.data.gov.uk/id/local-authority/29UP,Tonbridge & Malling Borough Council,10/19/2022,0031018959/3,31018959, 78.98,B&Q/Screwfix Direct(TradeUKAccount),00141300,,Other Expenses,Ukrainian Refugee Assistance,D54UA000048010,
http://statistics.data.gov.uk/id/local-authority/29UP,Tonbridge & Malling Borough Council,10/19/2022,0031018961/3,31018961, 2865.33,Tonbridge & Malling Leisure Trust,01469100,,Ticket Refunds - Lower Castle,Parking Off-Street,E10HAE01344199,
http://statistics.data.gov.uk/id/local-authority/29UP,Tonbridge & Malling Borough Council,10/19/2022,0031018970/3,31018970, 1295.00,Tunbridge Wells Borough Council,00844600,,Out of Hours Service,Civil Contingencies,D33NA000045025,
http://statistics.data.gov.uk/id/local-authority/29UP,Tonbridge & Malling Borough Council,10/19/2022,0031018970/4,31018970, 25060.13,Tunbridge Wells Borough Council,00844600,,CCTV Monitoring Station,Security Services Management,E09GA000051020,
http://statistics.data.gov.uk/id/local-authority/29UP,Tonbridge & Malling Borough Council,10/19/2022,0031018973/1,31018973, 97.70,KCC - L.A.S.E.R Commercial Services ,00184300,,Electricity,Parking Off-Street,E10HA000021002,
http://statistics.data.gov.uk/id/local-authority/29UP,Tonbridge & Malling Borough Council,10/19/2022,0032009834/1,32009834, 235.62,KM Media Group Ltd,00053900,,Advertising General,Development Management,A01ABZ99944216,320003448
http://statistics.data.gov.uk/id/local-authority/29UP,Tonbridge & Malling Borough Council,10/19/2022,0032009835/1,32009835, 3660.00,Quality Bailiffs,01835600,,Professional Fees,Development Management,A01ABENFO44001,320003388
http://statistics.data.gov.uk/id/local-authority/29UP,Tonbridge & Malling Borough Council,10/19/2022,0032009836/3,32009836, 5516.00,Vivid Resourcing,01773700,,Temporary Staff,Planning Sals&Overheads,D01AJDJ0111300,
http://statistics.data.gov.uk/id/local-authority/29UP,Tonbridge & Malling Borough Council,10/19/2022,0032009840/3,32009840, 1612.50,Carrington West Limited,01844500,,Temporary Staff,Planning Sals&Overheads,D01AJDJ0111300,
http://statistics.data.gov.uk/id/local-authority/29UP,Tonbridge & Malling Borough Council,10/19/2022,0032009841/3,32009841, 2590.00,G2 Recruitment Solutions,01786000,,Temporary Staff,Planning Sals&Overheads,D01AJDJ0111300,
http://statistics.data.gov.uk/id/local-authority/29UP,Tonbridge & Malling Borough Council,10/19/2022,0032009842/3,32009842, 3117.61,G2 Recruitment Solutions,01786000,,Temporary Staff,Planning Sals&Overheads,D01AJDJ0111300,
http://statistics.data.gov.uk/id/local-authority/29UP,Tonbridge & Malling Borough Council,10/19/2022,0032009843/3,32009843, 1609.50,G2 Recruitment Solutions,01786000,,Temporary Staff,Planning Sals&Overheads,D01AJDJ0111300,
http://statistics.data.gov.uk/id/local-authority/29UP,Tonbridge & Malling Borough Council,10/19/2022,0032009844/3,32009844, 1147.00,G2 Recruitment Solutions,01786000,,Temporary Staff,Planning Sals&Overheads,D01AJDJ0111300,
http://statistics.data.gov.uk/id/local-authority/29UP,Tonbridge & Malling Borough Council,10/19/2022,0032009845/3,32009845, 2028.99,The Oyster Partnership,01196400,,Temporary Staff,Planning Sals&Overheads,D01AJDJ0111300,
http://statistics.data.gov.uk/id/local-authority/29UP,Tonbridge & Malling Borough Council,10/19/2022,0032009846/3,32009846, 1671.18,The Oyster Partnership,01196400,,Temporary Staff,Planning Sals&Overheads,D01AJDJ0111300,
http://statistics.data.gov.uk/id/local-authority/29UP,Tonbridge & Malling Borough Council,10/19/2022,0032009847/3,32009847, 1844.70,The Oyster Partnership,01196400,,Temporary Staff,Planning Sals&Overheads,D01AJDJ0111300,
http://statistics.data.gov.uk/id/local-authority/29UP,Tonbridge & Malling Borough Council,10/19/2022,0032009848/3,32009848, 1736.96,The Oyster Partnership,01196400,,Temporary Staff,Planning Sals&Overheads,D01AJDJ0111300,
http://statistics.data.gov.uk/id/local-authority/29UP,Tonbridge & Malling Borough Council,10/19/2022,0032009849/1,32009849, 2625.00,Highgate Planning & Development Ltd,01838600,,Temporary Staff,Planning Sals&Overheads,D01AJDJ0111300,320003396
http://statistics.data.gov.uk/id/local-authority/29UP,Tonbridge & Malling Borough Council,10/19/2022,0032009850/1,32009850, 3100.00,Robinson Escott Planning LLP,01653000,,Application & Appeals,Development Management,A01AB000044194,320003337
http://statistics.data.gov.uk/id/local-authority/29UP,Tonbridge & Malling Borough Council,10/19/2022,0032009852/1,32009852, 690.00,Solve Web Media,01819500,,Professional Fees,Planning Policy,A01AFBORO44001,320003349
http://statistics.data.gov.uk/id/local-authority/29UP,Tonbridge & Malling Borough Council,10/19/2022,0032009854/1,32009854, 1317.72,Tunbridge Wells Borough Council,00844600,,Temporary Staff,Planning Sals&Overheads,D01AJDJ0111300,
http://statistics.data.gov.uk/id/local-authority/29UP,Tonbridge & Malling Borough Council,10/19/2022,0041034822/3,41034822, 556.60,Morgan Hunt UK Ltd,01086900,,Temporary Staff,Finance Sals&Overheads,D01AFDF1111300,
http://statistics.data.gov.uk/id/local-authority/29UP,Tonbridge & Malling Borough Council,10/19/2022,0041034823/3,41034823, 971.25,Morgan Hunt UK Ltd,01086900,,Temporary Staff,Finance Sals&Overheads,D01AFDF1111300,
http://statistics.data.gov.uk/id/local-authority/29UP,Tonbridge & Malling Borough Council,10/19/2022,0041034824/3,41034824, 802.00,Maidstone Borough Council,01173700,,Bailiffs Commission,Local Revenue & NNDR Collect,D41QA000044075,
http://statistics.data.gov.uk/id/local-authority/29UP,Tonbridge & Malling Borough Council,10/19/2022,0041034825/3,41034825, 2178.51,Maidstone Borough Council,01173700,,Bailiffs Commission,Local Revenue & NNDR Collect,D41QA000044075,
http://statistics.data.gov.uk/id/local-authority/29UP,Tonbridge & Malling Borough Council,10/19/2022,0041034826/3,41034826, 1963.37,Maidstone Borough Council,01173700,,Bailiffs Commission,Local Revenue & NNDR Collect,D41QA000044075,
http://statistics.data.gov.uk/id/local-authority/29UP,Tonbridge & Malling Borough Council,10/19/2022,0041034827/3,41034827, 1048.78,Maidstone Borough Council,01173700,,Bailiffs Commission,Local Revenue & NNDR Collect,D41QA000044075,
http://statistics.data.gov.uk/id/local-authority/29UP,Tonbridge & Malling Borough Council,10/19/2022,0041034828/3,41034828, 75.00,Maidstone Borough Council,01173700,,Bailiffs Commission,Local Revenue & NNDR Collect,D41QA000044075,
http://statistics.data.gov.uk/id/local-authority/29UP,Tonbridge & Malling Borough Council,10/19/2022,0041034829/3,41034829, 813.26,Rundle & Co Ltd,00087200,,Bailiffs Commission,Local Revenue & NNDR Collect,D41QA000044075,
http://statistics.data.gov.uk/id/local-authority/29UP,Tonbridge & Malling Borough Council,10/19/2022,0041034830/3,41034830, 720.03,Rundle & Co Ltd,00087200,,Bailiffs Commission,Local Revenue & NNDR Collect,D41QA000044075,
http://statistics.data.gov.uk/id/local-authority/29UP,Tonbridge & Malling Borough Council,10/19/2022,0041034847/1,41034847, 17860.00,Tonbridge Baptist Church,00401200,,Charitable / Voluntary Organis,Grants & Payments to Vol Orgn,D37PACV1947005,
http://statistics.data.gov.uk/id/local-authority/29UP,Tonbridge & Malling Borough Council,10/19/2022,0041034848/1,41034848, 1700.00,Waterlink Services - South East Water,00496500,,Other Expenses,Homeless Accommodation,P03AX000009908,
http://statistics.data.gov.uk/id/local-authority/29UP,Tonbridge & Malling Borough Council,10/19/2022,0041034849/1,41034849, 1743.06,WorldPay ,01568000,,Credit Card Commission,Banking Arrangements,D43QK000044082,
http://statistics.data.gov.uk/id/local-authority/29UP,Tonbridge & Malling Borough Council,10/19/2022,0041034849/2,41034849, 208.07,WorldPay ,01568000,,Credit Card Commission,Banking Arrangements,D43QK000044082,
http://statistics.data.gov.uk/id/local-authority/29UP,Tonbridge & Malling Borough Council,10/19/2022,0051008745/1,51008745, 95.00,The Horse Trust,01867000,,Ext Fees/Prof & Tech,Training,D10DCDR0413561,
http://statistics.data.gov.uk/id/local-authority/29UP,Tonbridge & Malling Borough Council,10/19/2022,0051008749/1,51008749, 54.00,Cantium Business Solutions Ltd,01698600,,Criminal Records Bureau Checks,Recruitment Expenses,D10DA000013180,510010595
http://statistics.data.gov.uk/id/local-authority/29UP,Tonbridge & Malling Borough Council,10/19/2022,0051008749/2,51008749, 22.50,Cantium Business Solutions Ltd,01698600,,Criminal Records Bureau Checks,Recruitment Expenses,D10DA000013180,510010595
http://statistics.data.gov.uk/id/local-authority/29UP,Tonbridge & Malling Borough Council,10/21/2022,0041034852/1,41034852, 875.00,St James the Great Primary School & Nurs,00337800,,Charitable / Voluntary Organis,Grants & Payments to Vol Orgn,D37PACV1947005,
http://statistics.data.gov.uk/id/local-authority/29UP,Tonbridge & Malling Borough Council,10/21/2022,0041034853/1,41034853, 875.00,St Katherines School & Nursery,01868400,,Charitable / Voluntary Organis,Grants & Payments to Vol Orgn,D37PACV1947005,
http://statistics.data.gov.uk/id/local-authority/29UP,Tonbridge & Malling Borough Council,10/21/2022,0041034854/1,41034854, 875.00,Woodlands Primary School,01868500,,Charitable / Voluntary Organis,Grants & Payments to Vol Orgn,D37PACV1947005,
http://statistics.data.gov.uk/id/local-authority/29UP,Tonbridge & Malling Borough Council,10/21/2022,0041034855/1,41034855, 2403.00,H.M. Revenue & Customs,00048400,,Levy Payment,Apprenticeship Scheme,D10DE000013700,
http://statistics.data.gov.uk/id/local-authority/29UP,Tonbridge & Malling Borough Council,10/24/2022,0041034856/1,41034856, 875.00,Snodland CofE Primary School,01868600,,Charitable / Voluntary Organis,Grants & Payments to Vol Orgn,D37PACV1947005,
http://statistics.data.gov.uk/id/local-authority/29UP,Tonbridge & Malling Borough Council,10/24/2022,0041034860/1,41034860, 20.11,WorldPay Ltd,01402000,991280207,Credit Card Commission,Banking Arrangements,D43QK000044082,
http://statistics.data.gov.uk/id/local-authority/29UP,Tonbridge & Malling Borough Council,10/24/2022,0041034861/1,41034861, 15.00,WorldPay ,01568000,,Credit Card Commission,Banking Arrangements,D43QK000044082,
http://statistics.data.gov.uk/id/local-authority/29UP,Tonbridge & Malling Borough Council,10/24/2022,0041034862/1,41034862, 141.18,WorldPay ,01568000,,Credit Card Commission,Banking Arrangements,D43QK000044082,
http://statistics.data.gov.uk/id/local-authority/29UP,Tonbridge & Malling Borough Council,10/24/2022,0041034863/1,41034863, 363.86,WorldPay ,01568000,,Credit Card Commission,Banking Arrangements,D43QK000044082,
http://statistics.data.gov.uk/id/local-authority/29UP,Tonbridge & Malling Borough Council,10/25/2022,0041034879/1,41034879, 4650.00,Connells Residential Lettings,01668100,,Temporary Accommodation,Homelessness,C01AASYRI44051,
http://statistics.data.gov.uk/id/local-authority/29UP,Tonbridge & Malling Borough Council,10/26/2022,0011045055/1,11045055, 13.90,KCS,00054200,,Stationery,Admin & Prop Sals&Overheads,D01AA000043003,110069829
http://statistics.data.gov.uk/id/local-authority/29UP,Tonbridge & Malling Borough Council,10/26/2022,0011045055/2,11045055, 9.90,KCS,00054200,,Stationery,Admin & Prop Sals&Overheads,D01AA000043003,110069829
http://statistics.data.gov.uk/id/local-authority/29UP,Tonbridge & Malling Borough Council,10/26/2022,0011045056/1,11045056, 365.00,Security & Electronic Solutions Ltd,01379500,,BRREP Servicing - CCTV,Tonbridge Swimming Pool,M15HBP20001952,110069759
http://statistics.data.gov.uk/id/local-authority/29UP,Tonbridge & Malling Borough Council,10/26/2022,0011045057/1,11045057, 5180.00,G C Industrial Heating Services,00578100,,BRREP Servicing - boilers,Angel Centre,M15HAP20001929,110069783
http://statistics.data.gov.uk/id/local-authority/29UP,Tonbridge & Malling Borough Council,10/26/2022,0011045058/1,11045058, 238.00,Southern Lightning Engineers Ltd,00094000,,BRREP Servicing-Lightning Prot,Tonbridge Swimming Pool,M15HBP20001942,110069658
http://statistics.data.gov.uk/id/local-authority/29UP,Tonbridge & Malling Borough Council,10/26/2022,0011045059/1,11045059, 90.00,BML Building Services Ltd,01505000,,BRREP Resp - Vandal / Break-In,Shops & Maisonettes,M15NAP50001998,110069555
http://statistics.data.gov.uk/id/local-authority/29UP,Tonbridge & Malling Borough Council,10/26/2022,0011045060/1,11045060, 79.00,BML Building Services Ltd,01505000,,BRREP General Maintenance,Land Review,M15MAP49901900,110069775
http://statistics.data.gov.uk/id/local-authority/29UP,Tonbridge & Malling Borough Council,10/26/2022,0011045061/1,11045061, 250.00,SECOM plc,01084600,445838322,BRREP Servicing-roller shutter,Ton Sportsgrnd Bldgs / Toilets,M15HCP20001928,110069832
http://statistics.data.gov.uk/id/local-authority/29UP,Tonbridge & Malling Borough Council,10/26/2022,0011045062/1,11045062, 357.00,SECOM plc,01084600,445838322,BRREP Response - General,Leis Man Poult Wood Golf Centr,M15HEP50001997,110069797
http://statistics.data.gov.uk/id/local-authority/29UP,Tonbridge & Malling Borough Council,10/26/2022,0011045063/1,11045063, 250.00,SECOM plc,01084600,445838322,BRREP Response - General,Leis Man Poult Wood Golf Centr,M15HEP50001997,110069830
http://statistics.data.gov.uk/id/local-authority/29UP,Tonbridge & Malling Borough Council,10/26/2022,0011045064/1,11045064, 99.00,"Parish of St Peter & St Paul, Tonbridge",01577300,,Purchases,TIC Stock Account,K18AX000001002,
http://statistics.data.gov.uk/id/local-authority/29UP,Tonbridge & Malling Borough Council,10/26/2022,0011045065/1,11045065, 19.20,Canon (UK) Limited,00298700,,Purchases - Paper,Printing,D22GA000040102,
http://statistics.data.gov.uk/id/local-authority/29UP,Tonbridge & Malling Borough Council,10/26/2022,0011045066/1,11045066, 2743.64,Royal Mail,00086200,,Purchases,Mailsort Stock Account,K37BR000001002,
http://statistics.data.gov.uk/id/local-authority/29UP,Tonbridge & Malling Borough Council,10/26/2022,0011045066/2,11045066, 1.75,Royal Mail,00086200,,Purchases,Mailsort Stock Account,K37BR000001002,
http://statistics.data.gov.uk/id/local-authority/29UP,Tonbridge & Malling Borough Council,10/26/2022,0011045066/3,11045066, 4.48,Royal Mail,00086200,,Purchases,Mailsort Stock Account,K37BR000001002,
http://statistics.data.gov.uk/id/local-authority/29UP,Tonbridge & Malling Borough Council,10/26/2022,0011045067/1,11045067, 43.14,Atlas Facilities Managment Limited ,01075900,,Miscellaneous Services,Cleaning & Security,D21FDDD5044015,
http://statistics.data.gov.uk/id/local-authority/29UP,Tonbridge & Malling Borough Council,10/26/2022,0011045068/1,11045068, 1600.00,The Oyster Partnership,01196400,,Temporary Staff,Admin & Prop Sals&Overheads,D01AADA1111300,
http://statistics.data.gov.uk/id/local-authority/29UP,Tonbridge & Malling Borough Council,10/26/2022,0011045069/1,11045069, 1561.36,The Oyster Partnership,01196400,,Temporary Staff,Admin & Prop Sals&Overheads,D01AADA1111300,
http://statistics.data.gov.uk/id/local-authority/29UP,Tonbridge & Malling Borough Council,10/26/2022,0011045070/1,11045070, 1184.48,The Oyster Partnership,01196400,,Temporary Staff,Admin & Prop Sals&Overheads,D01AADA1111300,
http://statistics.data.gov.uk/id/local-authority/29UP,Tonbridge & Malling Borough Council,10/26/2022,0011045071/1,11045071, 1.75,Royal Mail,00086200,,Purchases,Mailsort Stock Account,K37BR000001002,
http://statistics.data.gov.uk/id/local-authority/29UP,Tonbridge & Malling Borough Council,10/26/2022,0011045071/2,11045071, 11.20,Royal Mail,00086200,,Purchases,Mailsort Stock Account,K37BR000001002,
http://statistics.data.gov.uk/id/local-authority/29UP,Tonbridge & Malling Borough Council,10/26/2022,0011045071/3,11045071, 1022.32,Royal Mail,00086200,,Purchases,Mailsort Stock Account,K37BR000001002,
http://statistics.data.gov.uk/id/local-authority/29UP,Tonbridge & Malling Borough Council,10/26/2022,0011045072/1,11045072, 195.00,GreenFish Consulting part of JCML Consul,01627700,,Estate Management Charge,Land Review,D40PS000020400,
http://statistics.data.gov.uk/id/local-authority/29UP,Tonbridge & Malling Borough Council,10/26/2022,0011045073/1,11045073, 826.03,KCS,00054200,,Gas,Buildings,D21FEDD6021003,
http://statistics.data.gov.uk/id/local-authority/29UP,Tonbridge & Malling Borough Council,10/26/2022,0011045074/1,11045074, 1237.74,KCS,00054200,,Gas,Buildings,D21FEDD1021003,
http://statistics.data.gov.uk/id/local-authority/29UP,Tonbridge & Malling Borough Council,10/26/2022,0011045075/1,11045075, 79.00,R C Brady (UK) Ltd,00131500,,Purchases,TIC Stock Account,K18AX000001002,
http://statistics.data.gov.uk/id/local-authority/29UP,Tonbridge & Malling Borough Council,10/26/2022,0011045076/1,11045076, 514.10,TimeLine Gifts Ltd,00650200,,Purchases,TIC Stock Account,K18AX000001002,
http://statistics.data.gov.uk/id/local-authority/29UP,Tonbridge & Malling Borough Council,10/26/2022,0011045077/1,11045077, 575.00,IWS Water Hygiene,01392400,,BRREP Water Softener,Tonbridge Swimming Pool,M15HBP20001917,
http://statistics.data.gov.uk/id/local-authority/29UP,Tonbridge & Malling Borough Council,10/26/2022,0011045078/1,11045078, 100.00,BML Building Services Ltd,01505000,,BRREP Window/door repairs,Leis Man Poult Wood Golf Centr,M15HEP20001919,
http://statistics.data.gov.uk/id/local-authority/29UP,Tonbridge & Malling Borough Council,10/26/2022,0011045079/1,11045079, 44.97,REDACTED PERSONAL DATA,01189400,,Other Expenses,Mayoral & Other Member Support,D29LX000048010,
http://statistics.data.gov.uk/id/local-authority/29UP,Tonbridge & Malling Borough Council,10/26/2022,0011045080/1,11045080, 3513.00,District Councils' Network,01266300,,Subscriptions,Committee Administration,D29LL000047002,
http://statistics.data.gov.uk/id/local-authority/29UP,Tonbridge & Malling Borough Council,10/26/2022,0011045081/1,11045081, 1217.80,Sellick Partnership Group Limited,01336800,,Temporary Staff,Legal Sals&Overheads,D01ARDR0011300,
http://statistics.data.gov.uk/id/local-authority/29UP,Tonbridge & Malling Borough Council,10/26/2022,0012008519/1,12008519, 10.00,Vanquish Tech,01798700,124406447,Delivery Expenses,Information Technology,D27KD000044069,410032274
http://statistics.data.gov.uk/id/local-authority/29UP,Tonbridge & Malling Borough Council,10/26/2022,0012008519/2,12008519, 757.90,Vanquish Tech,01798700,124406447,Initial Furniture & Equipment,Capital Renewals IT,P06FBFB1009906,410032274
http://statistics.data.gov.uk/id/local-authority/29UP,Tonbridge & Malling Borough Council,10/26/2022,0012008520/1,12008520, 5285.00,Loop1 UK Limited,01746700,,Software Hire & Support,Information Technology,D27KD000044059,410032276
http://statistics.data.gov.uk/id/local-authority/29UP,Tonbridge & Malling Borough Council,10/26/2022,0021038211/1,21038211, 2350.00,SWS Countryside & Landscape,01567200,,Maintenance of Grounds,Open Spaces & Amenity Areas,B22LE000020402,210056845
http://statistics.data.gov.uk/id/local-authority/29UP,Tonbridge & Malling Borough Council,10/26/2022,0021038212/3,21038212, 350.00,SWS Countryside & Landscape,01567200,,Health & Safety - Trees,Countryside/Woodland Mgt,B22LG000044045,
http://statistics.data.gov.uk/id/local-authority/29UP,Tonbridge & Malling Borough Council,10/26/2022,0021038213/1,21038213, 350.00,SWS Countryside & Landscape,01567200,,Health & Safety - Trees,Countryside/Woodland Mgt,B22LG000044045,210056922
http://statistics.data.gov.uk/id/local-authority/29UP,Tonbridge & Malling Borough Council,10/26/2022,0021038214/3,21038214, 250.00,SWS Countryside & Landscape,01567200,,Health & Safety - Trees,Countryside/Woodland Mgt,B22LG000044045,
http://statistics.data.gov.uk/id/local-authority/29UP,Tonbridge & Malling Borough Council,10/26/2022,0021038215/3,21038215, 350.00,SWS Countryside & Landscape,01567200,,Health & Safety - Trees,Countryside/Woodland Mgt,B22LG000044045,
http://statistics.data.gov.uk/id/local-authority/29UP,Tonbridge & Malling Borough Council,10/26/2022,0021038216/3,21038216, 320.00,SWS Countryside & Landscape,01567200,,Health & Safety - Trees,Countryside/Woodland Mgt,B22LG000044045,
http://statistics.data.gov.uk/id/local-authority/29UP,Tonbridge & Malling Borough Council,10/26/2022,0021038218/1,21038218, 550.00,SWS Countryside & Landscape,01567200,,Health & Safety - Trees,Countryside/Woodland Mgt,B22LG000044045,210056961
http://statistics.data.gov.uk/id/local-authority/29UP,Tonbridge & Malling Borough Council,10/26/2022,0021038219/3,21038219, 850.00,SWS Countryside & Landscape,01567200,,Health & Safety - Trees,Countryside/Woodland Mgt,B22LG000044045,
http://statistics.data.gov.uk/id/local-authority/29UP,Tonbridge & Malling Borough Council,10/26/2022,0021038220/3,21038220, 150.00,SWS Countryside & Landscape,01567200,,Health & Safety - Trees,Countryside/Woodland Mgt,B22LG000044045,
http://statistics.data.gov.uk/id/local-authority/29UP,Tonbridge & Malling Borough Council,10/26/2022,0021038221/1,21038221, 350.00,SWS Countryside & Landscape,01567200,,Health & Safety - Trees,Countryside/Woodland Mgt,B22LG000044045,210056972
http://statistics.data.gov.uk/id/local-authority/29UP,Tonbridge & Malling Borough Council,10/26/2022,0021038222/1,21038222, 100.00,SWS Countryside & Landscape,01567200,,Maintenance of Grounds,Haysden Country Park,B22LC000020402,210056977
http://statistics.data.gov.uk/id/local-authority/29UP,Tonbridge & Malling Borough Council,10/26/2022,0021038222/2,21038222, 80.00,SWS Countryside & Landscape,01567200,,Maintenance of Grounds,Open Spaces & Amenity Areas,B22LE000020402,210056977
http://statistics.data.gov.uk/id/local-authority/29UP,Tonbridge & Malling Borough Council,10/26/2022,0021038223/3,21038223, 200.00,SWS Countryside & Landscape,01567200,,Health & Safety - Trees,Countryside/Woodland Mgt,B22LG000044045,
http://statistics.data.gov.uk/id/local-authority/29UP,Tonbridge & Malling Borough Council,10/26/2022,0021038224/1,21038224, 750.00,SWS Countryside & Landscape,01567200,,Health & Safety - Trees,Countryside/Woodland Mgt,B22LG000044045,210056920
http://statistics.data.gov.uk/id/local-authority/29UP,Tonbridge & Malling Borough Council,10/26/2022,0021038225/3,21038225, 170.00,SWS Countryside & Landscape,01567200,,Health & Safety - Trees,Countryside/Woodland Mgt,B22LG000044045,
http://statistics.data.gov.uk/id/local-authority/29UP,Tonbridge & Malling Borough Council,10/26/2022,0021038226/3,21038226, 430.00,SWS Countryside & Landscape,01567200,,Health & Safety - Trees,Countryside/Woodland Mgt,B22LG000044045,
http://statistics.data.gov.uk/id/local-authority/29UP,Tonbridge & Malling Borough Council,10/26/2022,0021038227/1,21038227, 165.00,SWS Countryside & Landscape,01567200,,Maintenance of Grounds,Open Spaces & Amenity Areas,B22LE000020402,210056964
http://statistics.data.gov.uk/id/local-authority/29UP,Tonbridge & Malling Borough Council,10/26/2022,0021038229/1,21038229, 1665.00,Amethyst Horticulture,01546900,,Purchases,Tonbridge Castle Grounds,B22LB000040101,210056906
http://statistics.data.gov.uk/id/local-authority/29UP,Tonbridge & Malling Borough Council,10/26/2022,0021038229/2,21038229, 245.00,Amethyst Horticulture,01546900,,Purchases,Tonbridge Castle Grounds,B22LB000040101,210056906
http://statistics.data.gov.uk/id/local-authority/29UP,Tonbridge & Malling Borough Council,10/26/2022,0022027122/1,22027122, 250.00,Kent Accommodation Ltd,01722000,,Professional Fees,Homelessness,C01AA000044001,
http://statistics.data.gov.uk/id/local-authority/29UP,Tonbridge & Malling Borough Council,10/26/2022,0022027123/1,22027123, 459.00,Kent Accommodation Ltd,01722000,,Professional Fees,Homelessness,C01AA000044001,
http://statistics.data.gov.uk/id/local-authority/29UP,Tonbridge & Malling Borough Council,10/26/2022,0022027124/3,22027124, 441.77,KCC - L.A.S.E.R Commercial Services ,00184300,,Air Quality Monitoring,Environmental Protection,H32SN000054016,
http://statistics.data.gov.uk/id/local-authority/29UP,Tonbridge & Malling Borough Council,10/26/2022,0022027125/3,22027125, 490.00,Countrystyle Group,00835900,781981681,Collection of Card,Dry Recycling,H34SR000054008,
http://statistics.data.gov.uk/id/local-authority/29UP,Tonbridge & Malling Borough Council,10/26/2022,0022027126/1,22027126, 630.00,Counterweight LTD,01506600,,Healthy Living Initiatives,Public Health - Healthy Living,H40SYVH0048145,220003271
http://statistics.data.gov.uk/id/local-authority/29UP,Tonbridge & Malling Borough Council,10/26/2022,0031018974/1,31018974, 14864.50,Duke Contractors Ltd,00082900,,Contract Payments,Car Park Imp Rolling Programme,P01AB000009904,310042832
http://statistics.data.gov.uk/id/local-authority/29UP,Tonbridge & Malling Borough Council,10/26/2022,0031018975/3,31018975, 1067.44,CDER Group,01773300,,Adjudication & Enforcement Ser,Parking Off-Street,E10HA000044230,
http://statistics.data.gov.uk/id/local-authority/29UP,Tonbridge & Malling Borough Council,10/26/2022,0032009855/1,32009855, 53173.12,Redrow Homes,01681500,,Payments,S106 - Commuted Sums,M04AD000001001,
http://statistics.data.gov.uk/id/local-authority/29UP,Tonbridge & Malling Borough Council,10/26/2022,0032009857/3,32009857, 3053.25,Vivid Resourcing,01773700,,Temporary Staff,Planning Sals&Overheads,D01AJDJ0111300,
http://statistics.data.gov.uk/id/local-authority/29UP,Tonbridge & Malling Borough Council,10/26/2022,0032009858/3,32009858, 1750.10,The Oyster Partnership,01196400,,Temporary Staff,Planning Sals&Overheads,D01AJDJ0111300,
http://statistics.data.gov.uk/id/local-authority/29UP,Tonbridge & Malling Borough Council,10/26/2022,0032009859/3,32009859, 1656.00,The Oyster Partnership,01196400,,Temporary Staff,Planning Sals&Overheads,D01AJDJ0111300,
http://statistics.data.gov.uk/id/local-authority/29UP,Tonbridge & Malling Borough Council,10/26/2022,0032009860/3,32009860, 2060.01,The Oyster Partnership,01196400,,Temporary Staff,Planning Sals&Overheads,D01AJDJ0111300,
http://statistics.data.gov.uk/id/local-authority/29UP,Tonbridge & Malling Borough Council,10/26/2022,0032009861/1,32009861, 128.52,KM Media Group Ltd,00053900,,Advertising General,Development Management,A01ABZ99944216,320003449
http://statistics.data.gov.uk/id/local-authority/29UP,Tonbridge & Malling Borough Council,10/26/2022,0032009863/3,32009863, 1147.00,G2 Recruitment Solutions,01786000,,Temporary Staff,Planning Sals&Overheads,D01AJDJ0111300,
http://statistics.data.gov.uk/id/local-authority/29UP,Tonbridge & Malling Borough Council,10/26/2022,0032009864/3,32009864, 1609.50,G2 Recruitment Solutions,01786000,,Temporary Staff,Planning Sals&Overheads,D01AJDJ0111300,
http://statistics.data.gov.uk/id/local-authority/29UP,Tonbridge & Malling Borough Council,10/26/2022,0032009865/3,32009865, 2597.18,G2 Recruitment Solutions,01786000,,Temporary Staff,Planning Sals&Overheads,D01AJDJ0111300,
http://statistics.data.gov.uk/id/local-authority/29UP,Tonbridge & Malling Borough Council,10/26/2022,0032009866/3,32009866, 2590.00,G2 Recruitment Solutions,01786000,,Temporary Staff,Planning Sals&Overheads,D01AJDJ0111300,
http://statistics.data.gov.uk/id/local-authority/29UP,Tonbridge & Malling Borough Council,10/26/2022,0032009867/3,32009867, 1612.50,Carrington West Limited,01844500,,Temporary Staff,Planning Sals&Overheads,D01AJDJ0111300,
http://statistics.data.gov.uk/id/local-authority/29UP,Tonbridge & Malling Borough Council,10/26/2022,0041034558/1,41034558, 1583.82,The Oyster Partnership,01196400,,Temporary Staff,Finance Sals&Overheads,D01AFDF1111300,
http://statistics.data.gov.uk/id/local-authority/29UP,Tonbridge & Malling Borough Council,10/26/2022,0041034840/1,41034840, 875.00,Cage Green Primary School,01868000,,Charitable / Voluntary Organis,Grants & Payments to Vol Orgn,D37PACV1947005,
http://statistics.data.gov.uk/id/local-authority/29UP,Tonbridge & Malling Borough Council,10/26/2022,0041034841/1,41034841, 875.00,Long Mead Community Primary School,01868100,,Charitable / Voluntary Organis,Grants & Payments to Vol Orgn,D37PACV1947005,
http://statistics.data.gov.uk/id/local-authority/29UP,Tonbridge & Malling Borough Council,10/26/2022,0041034842/3,41034842, 130000.00,Clear Channel United Kingdom,01583700,,Repair & Mtce of Fixed Plant,Boro Highways & Emergency Oper,E01AAE90220501,
http://statistics.data.gov.uk/id/local-authority/29UP,Tonbridge & Malling Borough Council,10/26/2022,0041034843/3,41034843, 46280.00,Kent County Council,00322500,,Temporary Staff,Finance Sals&Overheads,D01AFDF0811300,
http://statistics.data.gov.uk/id/local-authority/29UP,Tonbridge & Malling Borough Council,10/26/2022,0041034844/3,41034844, 17350.68,Phoenix Software Ltd,00077400,755349015,Software Hire & Support,Information Technology,D27KD000044059,
http://statistics.data.gov.uk/id/local-authority/29UP,Tonbridge & Malling Borough Council,10/26/2022,0041034850/3,41034850, 1126.07,The Oyster Partnership,01196400,,Temporary Staff,Finance Sals&Overheads,D01AFDF1111300,
http://statistics.data.gov.uk/id/local-authority/29UP,Tonbridge & Malling Borough Council,10/26/2022,0041034864/1,41034864, 250000.00,Tonbridge & Malling Leisure Trust,01469100,,Leisure Trust Utility Cost Sha,T&M Leisure Trust,B10DA000050106,
http://statistics.data.gov.uk/id/local-authority/29UP,Tonbridge & Malling Borough Council,10/26/2022,0041034865/1,41034865, 80.00,WorldPay Ltd,01402000,991280207,Credit Card Commission,Banking Arrangements,D43QK000044082,
http://statistics.data.gov.uk/id/local-authority/29UP,Tonbridge & Malling Borough Council,10/26/2022,0041034865/2,41034865, 66.48,WorldPay Ltd,01402000,991280207,Credit Card Commission,Banking Arrangements,D43QK000044082,
http://statistics.data.gov.uk/id/local-authority/29UP,Tonbridge & Malling Borough Council,10/26/2022,0041034865/3,41034865, 0.08,WorldPay Ltd,01402000,991280207,Credit Card Commission,Banking Arrangements,D43QK000044082,
http://statistics.data.gov.uk/id/local-authority/29UP,Tonbridge & Malling Borough Council,10/26/2022,0041034866/1,41034866, 80.00,WorldPay Ltd,01402000,991280207,Credit Card Commission,Banking Arrangements,D43QK000044082,
http://statistics.data.gov.uk/id/local-authority/29UP,Tonbridge & Malling Borough Council,10/26/2022,0041034866/2,41034866, 108.96,WorldPay Ltd,01402000,991280207,Credit Card Commission,Banking Arrangements,D43QK000044082,
http://statistics.data.gov.uk/id/local-authority/29UP,Tonbridge & Malling Borough Council,10/26/2022,0041034866/3,41034866, 0.88,WorldPay Ltd,01402000,991280207,Credit Card Commission,Banking Arrangements,D43QK000044082,
http://statistics.data.gov.uk/id/local-authority/29UP,Tonbridge & Malling Borough Council,10/26/2022,0041034867/1,41034867, 80.00,WorldPay Ltd,01402000,991280207,Credit Card Commission,Banking Arrangements,D43QK000044082,
http://statistics.data.gov.uk/id/local-authority/29UP,Tonbridge & Malling Borough Council,10/26/2022,0041034867/2,41034867, 151.92,WorldPay Ltd,01402000,991280207,Credit Card Commission,Banking Arrangements,D43QK000044082,
http://statistics.data.gov.uk/id/local-authority/29UP,Tonbridge & Malling Borough Council,10/26/2022,0041034867/3,41034867, 0.24,WorldPay Ltd,01402000,991280207,Credit Card Commission,Banking Arrangements,D43QK000044082,
http://statistics.data.gov.uk/id/local-authority/29UP,Tonbridge & Malling Borough Council,10/26/2022,0041034868/3,41034868, 445.28,Morgan Hunt UK Ltd,01086900,,Temporary Staff,Finance Sals&Overheads,D01AFDF1111300,
http://statistics.data.gov.uk/id/local-authority/29UP,Tonbridge & Malling Borough Council,10/26/2022,0041034869/3,41034869, 971.25,Morgan Hunt UK Ltd,01086900,,Temporary Staff,Finance Sals&Overheads,D01AFDF1111300,
http://statistics.data.gov.uk/id/local-authority/29UP,Tonbridge & Malling Borough Council,10/26/2022,0041034870/1,41034870, 1114.10,Maidstone Borough Council,01173700,,Bailiffs Commission,Local Revenue & NNDR Collect,D41QA000044075,
http://statistics.data.gov.uk/id/local-authority/29UP,Tonbridge & Malling Borough Council,10/26/2022,0041034871/1,41034871, 2861.65,Maidstone Borough Council,01173700,,Bailiffs Commission,Local Revenue & NNDR Collect,D41QA000044075,
http://statistics.data.gov.uk/id/local-authority/29UP,Tonbridge & Malling Borough Council,10/26/2022,0041034872/1,41034872, 900.74,Rundle & Co Ltd,00087200,,Bailiffs Commission,Local Revenue & NNDR Collect,D41QA000044075,
http://statistics.data.gov.uk/id/local-authority/29UP,Tonbridge & Malling Borough Council,10/26/2022,0041034873/1,41034873, 158.14,Rundle & Co Ltd,00087200,,Bailiffs Commission,Local Revenue & NNDR Collect,D41QA000044075,
http://statistics.data.gov.uk/id/local-authority/29UP,Tonbridge & Malling Borough Council,10/26/2022,0041034874/1,41034874, 50.00,REDACTED PERSONAL DATA,01868700,,Purchases,Planning Sals&Overheads,D01AJDJ0140101,
http://statistics.data.gov.uk/id/local-authority/29UP,Tonbridge & Malling Borough Council,10/26/2022,0041034876/1,41034876, 108123.62,Lower Medway Internal Drainage Board,00059900,,Payments to Drainage Boards,Drainage Boards Levies,D44QT000024004,
http://statistics.data.gov.uk/id/local-authority/29UP,Tonbridge & Malling Borough Council,10/26/2022,0041034877/1,41034877, 122384.69,Upper Medway Internal Drainage Board,00109100,,Payments to Drainage Boards,Drainage Boards Levies,D44QT000024004,
http://statistics.data.gov.uk/id/local-authority/29UP,Tonbridge & Malling Borough Council,10/27/2022,0041034882/1,41034882, 200.00,National Westminster Bank Plc,00069400,,Direct Debit / Bank Charges,Local Revenue & NNDR Collect,D41QA000044079,
http://statistics.data.gov.uk/id/local-authority/29UP,Tonbridge & Malling Borough Council,10/27/2022,0041034883/1,41034883, 68.00,National Westminster Bank Plc,00069400,,Direct Debit / Bank Charges,Local Revenue & NNDR Collect,D41QA000044079,
